Cogmind - Beta 15 @@@ ROGUE MODE // 2025.08.08 @ 19:28:21 Player: H3-RMN Result: Destroyed by Executioner with Helical Railgun Performance ------------- Evolutions (7) 3500 Regions Visited (27) 5400 Robots Destroyed (236) 1180 Value Destroyed (11193) 11193 Prototype IDs (110) 2200 Alien Tech Used (7) 1400 Bonus (10259) 10259 TOTAL SCORE: 35132 Bonus ------- High Alert Combat Kills 1038 Follower Combat Kills 4987 Entered Garrisons 200 Network Hubs Disabled 400 Registered with UFD 300 Met Optimus in HQ 500 Met Zhirov 300 Met Warlord at Base 500 MAIN.C Attacked Warlord 500 Warlord Defense Kills 1584 A7 Reached Mainframe 300 Met R17 at Cetus 500 Met Optimus at Protoforge 1000 Friendly Fire -1850 Cogmind --------- Core Integrity 0/1300 Matter 241/300 Energy 486/590 System Corruption 16% Temperature Cool (0) Movement Immobile (Siege) Location -3/Protoforge Parts ------- > --- POWER (2) -------- Graviton Reactor Improved Quantum Reactor > --- PROPULSION (6) --- Heavy Shield Leg Heavy Shield Leg Heavy Shield Leg > --- UTILITY (11) ----- 0bPrime Scrap Suit Coolant Network Huge Storage Unit Experimental Signal Interpreter Experimental Core Analyzer Experimental Core Analyzer Advanced Kinecellerator Experimental Reaction Control System Centrium Medium Armor Plating > --- WEAPON (2) ------- Enhanced Hardcell Cannon Gamma Bomb Array > --- INVENTORY (25) --- Light Antimatter Reactor Enhanced Biometal Leg Heavy Shield Leg Experimental Coolant Injector Advanced Energy Well (500) Matter Compressor (250) Long-range Sensor Array Centrium Medium Armor Plating Transdimensional Reconstructor Subatomic Replicator Terrabomb Improved Matter Neutralizer Enhanced Hardcell Cannon Mini Smartbomb Launcher UFD Drillbomb Peak State ------------ > --- POWER ------------ Graviton Reactor Improved Quantum Reactor > --- PROPULSION ------- Heavy Shield Leg Heavy Shield Leg Heavy Shield Leg > --- UTILITY ---------- 0bPrime Scrap Suit Coolant Network Huge Storage Unit Experimental Signal Interpreter Experimental Core Analyzer Experimental Core Analyzer Advanced Kinecellerator Experimental Reaction Control System Centrium Medium Armor Plating > --- WEAPON ----------- Enhanced Hardcell Cannon Enhanced Hardcell Cannon > --- INVENTORY -------- Light Antimatter Reactor Enhanced Biometal Leg Heavy Shield Leg Experimental Coolant Injector Advanced Energy Well Matter Compressor Long-range Sensor Array Centrium Medium Armor Plating Transdimensional Reconstructor Subatomic Replicator Terrabomb Improved Matter Neutralizer Gamma Bomb Array Mini Smartbomb Launcher UFD Drillbomb [Rating: 207] Favorites ----------- Power Quantum Reactor Engine Subdweller Power Source Power Core Micro Fission Core Reactor Quantum Reactor Propulsion Gravmag System Treads Armored Treads Leg Overtuned Flexi-carbon Leg Wheel Wheel Hover Unit Gravmag System Flight Unit Xenon Bombardment Thruster Utility Experimental Signal Interpreter Device Long-range Sensor Array Storage Large Storage Unit Processor Experimental Signal Interpreter Hackware Advanced Hacking Suite Protection Centrium Medium Armor Plating Artifact Phase Armor Weapon Advanced KE Penetrator Energy Gun Subdweller Laser Energy Cannon Heavy Plasma Cannon Ballistic Gun Advanced KE Penetrator Ballistic Cannon Enhanced Hardcell Cannon Launcher Smartbomb Launcher Special Weapon Plasma Cutter Impact Weapon Core Stripper Slashing Weapon Sigix Broadsword Piercing Weapon Kinetic Spear Special Melee Weapon Datajack Build | -11 -10 -10 -10 -8 -8 -6 -6 -6 -6 -6 -5 -5 -5 -5 -5 -5 -4 -4 -4 -4 -4 -4 -4 -3 -3 -3 -3 ------- Run | Yrd Mat Min Sub Rec Scr Fac Ext Cet Arc Hub Fac Gar Fac Upp Upp War Pro Fac Was Fac Upp Upp Zhi Pro Res Qua Frg Slots Evolved 14 | . . . . . . 8 . . . . 2 . . . . . . 2 . . . . . . 2 . . Power 1 | . . . . . . 1 . . . . . . . . . . . . . . . . . . . . . Propulsion 4 | . . . . . . 3 . . . . . . . . . . . 1 . . . . . . . . . Utility 9 | . . . . . . 4 . . . . 2 . . . . . . 1 . . . . . . 2 . . Weapon . | . . . . . . . . . . . . . . . . . . . . . . . . . . . . Parts Attached 330 | 7 4 1 8 1 9 29 16 11 11 4 14 24 35 3 2 20 2 22 3 6 3 2 5 12 24 20 32 Power 52 | 1 . . 1 . 2 4 2 3 1 1 3 3 7 . . 4 . 3 1 1 2 . 1 1 3 3 5 Engine 17 | 1 . . 1 . 2 2 1 . 1 . 2 1 2 . . 2 . 2 . . . . . . . . . Core 15 | . . . . . . 2 . . . 1 1 2 5 . . 1 . . . 1 1 . . 1 . . . Reactor 20 | . . . . . . . 1 3 . . . . . . . 1 . 1 1 . 1 . 1 . 3 3 5 Propulsion 85 | 2 . . 1 1 1 6 1 3 6 1 6 10 11 1 1 5 . 6 . 1 . 1 2 7 4 4 4 Treads 8 | 1 . . 1 1 . . . 2 . . . 2 . . 1 . . . . . . . . . . . . Leg 16 | . . . . . . 5 1 1 . . . 2 . . . 1 . . . . . . 1 . . 1 4 Wheel 5 | 1 . . . . 1 1 . . . . . 1 . . . 1 . . . . . . . . . . . Hover 38 | . . . . . . . . . 6 1 6 . 1 . . 1 . 6 . 1 . 1 1 7 4 3 . Flight 18 | . . . . . . . . . . . . 5 10 1 . 2 . . . . . . . . . . . Utility 120 | 2 2 . 2 . 3 11 7 3 3 1 4 7 13 2 1 6 1 6 2 3 1 . 2 1 12 7 18 Device 53 | 1 . . 1 . . 7 6 . 1 . 1 4 7 . 1 4 1 1 2 . 1 . 1 . 5 3 6 Storage 6 | 1 1 . 1 . . . . . . . . . . . . . . 1 . . . . . . 1 . 1 Processor 21 | . . . . . . 1 . . . . 1 1 4 1 . . . 1 . 1 . . 1 1 5 2 2 Hackware 20 | . . . . . 1 . . . 2 . 2 2 2 . . 2 . 2 . 2 . . . . 1 1 3 Protection 19 | . 1 . . . 2 3 1 3 . 1 . . . 1 . . . 1 . . . . . . . . 6 Artifact 1 | . . . . . . . . . . . . . . . . . . . . . . . . . . 1 . Weapon 73 | 2 2 1 4 . 3 8 6 2 1 1 1 4 4 . . 5 1 7 . 1 . 1 . 3 5 6 5 Energy Gun 15 | 1 . . 1 . . 2 2 . . . . 1 1 . . . . 5 . . . . . . . 1 1 Energy Cannon 8 | . . . . . 1 2 . . . . 1 . . . . 1 . . . . . . . . 3 . . Ballistic Gun 13 | 1 2 1 2 . . 2 1 2 . . . . . . . . . . . 1 . . . . . 1 . Ballistic Cannon 6 | . . . . . 1 . . . . . . 2 . . . 1 . . . . . . . . . . 2 Launcher 14 | . . . 1 . . 1 . . . 1 . . 1 . . 2 1 . . . . . . 3 2 1 1 Special Weapon 6 | . . . . . . 1 2 . . . . 1 . . . . . 1 . . . . . . . . 1 Impact Weapon 1 | . . . . . . . . . . . . . . . . . . . . . . . . . . 1 . Slashing Weapon 3 | . . . . . . . . . . . . . . . . . . 1 . . . 1 . . . 1 . Piercing Weapon 3 | . . . . . . . . . . . . . 1 . . 1 . . . . . . . . . 1 . Special Melee Weapon 4 | . . . . . 1 . 1 . 1 . . . 1 . . . . . . . . . . . . . . Unidentified Prototypes 54 | . . . 1 . . . . 3 . . 3 . 2 1 1 13 2 1 . . . . 3 3 2 12 7 Corrupted Parts 3 | . . . . . 1 . . . . . . . . . . . . . . . . . . 2 . . . System Corruption 18 | . . . . . 4 . . . . . . . . . . . . . . . . . . 14 . . . Parts Lost 62 | . . . 1 . 1 3 . . . 5 5 4 9 1 . 7 . 1 . . . . . . 8 6 11 Power 12 | . . . . . . 1 . . . . . . 3 . . 1 . . . . . . . . 2 2 3 Propulsion 23 | . . . . . 1 1 . . . 3 2 2 2 1 . 3 . . . . . . . . 2 1 5 Utility 15 | . . . . . . . . . . 1 2 1 3 . . 2 . . . . . . . . 3 2 1 Weapon 12 | . . . 1 . . 1 . . . 1 1 1 1 . . 1 . 1 . . . . . . 1 1 2 Highest Loss Streak 10 | . . . 1 . 1 1 . . . 5 4 2 5 1 . 4 . 1 . . . . . . 3 5 10 To Critical Strikes 3 | . . . . . . . . . . . . . . . . 1 . 1 . . . . . . . . 1 Average Backups 16 | 3 7 10 21 22 19 14 14 14 14 14 14 14 12 12 12 12 3 13 18 17 17 18 18 19 19 19 16 Power . | . 1 1 1 1 . . . . . . 1 1 . . . . . 1 . . 1 1 . . . . . Propulsion 2 | 1 1 1 3 4 3 1 1 1 2 1 . . 1 . . . . 2 3 5 5 4 5 5 5 3 1 Utility 7 | . 1 4 8 9 8 7 8 7 7 8 7 8 6 5 7 4 . 6 11 9 7 8 9 9 7 6 6 Weapon 4 | . 3 4 7 8 5 3 2 2 2 1 2 2 3 5 4 6 2 3 3 3 4 4 3 3 5 5 4 Tool/Special . | . . . . . . . . . . . . . . . . . . . . . . . . . . . . Unused Backups 100 | . 3 . . 2 15 12 3 2 5 . 2 . 7 3 1 5 . 10 1 4 . 2 3 2 8 . 10 Power 11 | . . . . 1 3 1 . . . . . . 1 . . . . 2 . . . . 1 . 1 . 1 Propulsion 31 | . 2 . . 1 5 3 1 1 2 . . . . . . 1 . 3 . 1 . 1 2 2 3 . 3 Utility 37 | . . . . . 3 7 2 1 . . 1 . 5 2 1 2 . 3 1 3 . 1 . . 3 . 2 Weapon 17 | . 1 . . . 4 1 . . 2 . 1 . 1 1 . 2 . 2 . . . . . . 1 . 1 Tool/Special 4 | . . . . . . . . . 1 . . . . . . . . . . . . . . . . . 3 Average Slot Usage (%) 91 | . 99 100 99 100 83 86 92 90 92 86 90 91 84 79 85 83 41 85 98 99 99 100 99 99 98 89 79 Engine 5 | . 14 14 14 14 13 6 10 1 . . 4 2 3 3 4 3 . 4 5 3 . . . . . . . Reactor 4 | . . . . . . . . 10 11 . . . . . . 2 . 3 5 5 5 5 5 5 6 7 5 Treads 4 | . 14 14 14 14 13 4 . 3 . . . 6 . . . . . . . . . . . . . . . Leg 2 | . . . . . . 23 29 22 . . . 4 . . . . . . . . . . . . . . 8 Wheel 4 | . 14 14 14 14 13 . 1 . . . . 1 . . . . . . . . . . . . . . . Hover 13 | . . . . . . . . . 29 30 24 6 1 . . . . 23 31 31 31 31 30 30 27 27 8 Flight 2 | . . . . . . . . . . . . 3 20 23 23 27 5 1 . . . . . . . . . Device 7 | . 1 . 13 14 1 10 11 10 . 5 8 7 12 10 11 14 14 13 14 16 14 15 10 10 11 9 9 Storage 8 | . 14 14 14 14 13 5 6 6 6 6 5 5 4 5 5 4 . 3 5 5 5 5 5 5 4 4 6 Processor 7 | . . . . . . 5 6 6 6 6 10 12 12 29 29 20 11 12 10 10 10 10 13 15 17 15 18 Hackware 3 | . . . . . . . . . . 12 13 9 13 . . 2 5 12 15 13 15 15 15 15 17 16 7 Protection 7 | . 12 14 . . 7 6 6 9 17 6 5 7 . . . . . . . . . . . . . . 3 Energy Gun 2 | . . . 4 14 6 1 5 1 . . . 1 1 . . . . 5 4 4 . . . . . . 1 Energy Cannon 2 | . . . . . 1 7 6 6 6 5 2 3 . . . . . . . . . . . . 1 . . Ballistic Gun 8 | . 26 28 22 14 6 . 6 9 11 . . . . . . . . . . . 5 1 . . . . . Peak Build Rating 207 | 9 12 15 21 21 34 87 86 130 131 85 102 96 104 92 88 120 72 131 131 136 139 136 138 140 156 183 207 Average Rating 80 | 5 10 11 18 20 19 78 83 103 101 77 86 84 80 80 84 94 57 109 126 131 133 135 134 137 147 162 168 On Entrance 80 | . 9 11 15 19 21 34 77 85 130 81 66 74 50 83 68 79 49 57 128 131 133 134 135 135 136 152 168 Naked Turns . | . . . . . . . . . . . . . . . . . . . . . . . . . . . . Heaviest Build 158 | 14 36 36 95 94 103 113 67 102 102 45 54 69 41 30 43 102 7 75 80 69 71 71 74 83 92 116 158 Greatest Support 180 | 20 10 10 10 10 20 84 109 160 160 45 57 56 41 31 24 32 7 72 72 73 73 74 76 84 88 93 180 Greatest Overweight (x) 33 | 1 3 3 9 9 10 1 . 1 33 1 . 6 1 1 9 9 . 1 1 . . . 1 1 1 1 2 Average Overweight (x) 3 | . 2 3 8 9 8 . . . 19 . . 2 . . . . . . . . . . . . . . . Largest Inventory Capacity 25 | 8 15 15 25 25 25 25 15 15 15 15 15 15 15 15 15 15 5 20 20 20 20 20 20 20 20 20 25 Average Capacity 18 | 7 10 15 24 25 25 15 15 15 15 15 15 15 14 15 15 14 5 14 20 20 20 20 20 20 20 20 22 Most Carried 25 | 6 8 15 25 25 25 22 15 15 15 15 15 15 15 15 15 15 4 20 20 20 20 20 20 20 20 20 25 Average Carried 17 | 3 7 10 21 24 20 14 14 14 14 14 14 14 14 14 14 14 2 13 19 19 19 19 19 19 19 19 20 Final Capacity 25 | 8 15 15 25 25 25 15 15 15 15 15 15 15 15 15 15 5 5 20 20 20 20 20 20 20 20 20 25 Final Carried 25 | 6 8 15 25 25 24 15 15 15 15 14 15 14 15 15 15 4 3 20 20 20 20 20 20 20 20 19 25 Class Distribution -------------------- 34% | Mutant 26% | Scavenger-Tank 10% | Hacker-Scout 4% | Scavenger-Mutant 3% | Scrapper Dominant Class ---------------- Mutant | -10/Materials Mutant | -10/Mines Mutant | -10/Subcaves Mutant | -8/Recycling Mutant | -8/Scraptown Scrapper | -6/Factory Scavenger-Scrapper | -6/Extension Scavenger-Tank | -6/Cetus Scavenger-Tank | -6/Archives Scavenger-Mutant | -6/Hub_04(d) Scavenger-Mutant | -5/Factory Scavenger-Mutant | -5/Garrison Hacker-Scout | -5/Factory Scout | -5/Upper Caves Assassin | -5/Upper Caves Mutant | -5/Warlord Hacker-Scout | -4/Proximity Caves Hacker-Scout | -4/Factory Hacker-Scout | -4/Waste Scavenger-Ninja | -4/Factory Hacker-Scout | -4/Upper Caves Hacker-Scout | -4/Upper Caves Hacker-Scout | -4/Zhirov Hacker-Scout | -3/Proximity Caves Wizard-Scout | -3/Research Hacker-Ninja | -3/Quarantine Scavenger-Mutant | -3/Protoforge Resources | -11 -10 -10 -10 -8 -8 -6 -6 -6 -6 -6 -5 -5 -5 -5 -5 -5 -4 -4 -4 -4 -4 -4 -4 -3 -3 -3 -3 ----------- Run | Yrd Mat Min Sub Rec Scr Fac Ext Cet Arc Hub Fac Gar Fac Upp Upp War Pro Fac Was Fac Upp Upp Zhi Pro Res Qua Frg Matter Collected 12114 | 274 17 117 356 12 104 1098 572 278 264 50 250 641 1547 103 76 996 55 565 155 203 121 40 80 750 556 935 1899 Remotely . | . . . . . . . . . . . . . . . . . . . . . . . . . . . . Salvage Created 10448 | 135 17 100 199 . . 758 916 324 353 112 19 638 706 169 80 489 47 575 243 133 46 78 242 713 1315 846 1195 Parts 509 | 4 3 5 13 . . 43 37 17 26 6 2 27 37 3 3 20 4 30 2 9 5 . 2 40 85 44 42 Haulers Intercepted 4 | . . . . . . . . . . . . . . . . . . 2 . . . . . . 2 . . Recyclers Shooed 7 | . . . . . . 5 1 . . . . . . . . . . . . . . . . . . 1 . Parts Field Recycled . | . . . . . . . . . . . . . . . . . . . . . . . . . . . . Retrieved Matter . | . . . . . . . . . . . . . . . . . . . . . . . . . . . . Parts Self-Destructed 58 | . . . 11 . . . . . . . . . . 2 6 . 4 . . . 4 . 1 30 . . . Prevented 14 | . . . . . . . . . . . . . . 1 5 . . . . . 6 . . 2 . . . Kills | -11 -10 -10 -10 -8 -8 -6 -6 -6 -6 -6 -5 -5 -5 -5 -5 -5 -4 -4 -4 -4 -4 -4 -4 -3 -3 -3 -3 ------- Run | Yrd Mat Min Sub Rec Scr Fac Ext Cet Arc Hub Fac Gar Fac Upp Upp War Pro Fac Was Fac Upp Upp Zhi Pro Res Qua Frg Combat Hostiles Destroyed 171 | . . 2 4 . . 24 16 4 1 1 3 11 10 1 . 18 4 3 1 3 4 . . 14 14 9 24 Melee 18 | . . . . . . . . . . . . . 2 1 . . . . . 1 . . . 4 5 5 . Guns 28 | . . 2 4 . . . 13 3 1 . . 3 . . . . . . . . . . . . . 1 1 Cannons 40 | . . . . . . 6 . 1 . . . 8 5 . . 4 . 3 . . . . . 1 2 2 8 AOE 77 | . . . . . . 16 2 . . 1 3 . 3 . . 14 4 . 1 2 4 . . 9 6 . 12 Classes Destroyed 32 | 2 1 2 5 . . 4 5 . . 1 . . . . 1 2 . 1 1 . . . . 1 . 1 5 Worker 10 | . . 1 . . . . . . . . . . 3 . . . . 3 . . . . . . 2 1 . Builder 6 | . . . . . . 2 . . . 1 . . . . . . . . . . . . . . 2 1 . Tunneler 2 | 2 . . . . . . . . . . . . . . . . . . . . . . . . . . . Hauler 4 | . . . . . . . . . . . . . . . . . . 2 . . . . . . 2 . . Recycler 9 | 1 . . . . . 1 1 . . . . . 2 . . . . 1 . . . . . . 1 2 . Mechanic 2 | . . . . . . . 1 . . . . . . . . . . . . . . . . . . . 1 Operator 13 | . . . . . . . 1 . 8 . . . 1 . . . . 1 . 1 . . . . . 1 . Drone 2 | . . . . . . . . . . . . . . . . . . . . . . . . . . . 2 Turret 1 | . . . 1 . . . . . . . . . . . . . . . . . . . . . . . . Watcher 13 | . 1 . . . . 1 . . . 3 . . 2 . . . . . . . . . . . 4 2 . Swarmer 55 | . . . 2 . . 15 3 . . . . 4 2 . . 4 4 . . . 4 . . 8 3 4 2 Cutter 4 | . . . . . . . . . . 1 3 . . . . . . . . . . . . . . . . Saboteur 3 | . . . . . . . . . . . . . . . . 2 . . . . . . . . . . 1 Grunt 36 | . . 2 . . . 1 8 . . . . 5 4 . . 10 . . . 1 . . . . 1 . 4 Brawler 1 | . . . . . . . . . . . . . . . . 1 . . . . . . . . . . . Duelist 1 | . . . . . . . . . . . . . . . . . . . . . . . . . . . 1 Protector 2 | . . . . . . . 1 . . . . . . . . . . . . . . . . 1 . . . Sentry 9 | . . . . . . 5 1 . 1 . . . . 1 . . . . . . . . . 1 . . . Demolisher 4 | . . . . . . . . . . . . . . . . . . . . . . . . 3 1 . . Specialist 1 | . . . . . . . 1 . . . . . . . . . . . . . . . . . . . . Hunter 7 | . . . . . . 1 . . . . . . . . . 1 . . . . . . . . 2 1 2 Programmer 28 | . . . . . . 2 1 . . . . 2 4 . . . . 3 . 2 . . . 1 7 3 3 Behemoth 1 | . . . . . . . 1 . . . . . . . . . . . . . . . . . . . . Compactor 1 | . . . . . . . . . . . . . . . . . . . 1 . . . . . . . . Cetus Guard 4 | . . . . . . . . 4 . . . . . . . . . . . . . . . . . . . Hotshot 1 | . . . . . . . . . . . . . . . . . . . . . . . . . . . 1 Striker 7 | . . . . . . . . . . . . . . . . . . . . . . . . . . . 7 Executioner 1 | . . . . . . . . . . . . . . . . . . . . . . . . . . . 1 Alpha 7 1 | . . . . . . . . . . . . . . . . . . . . . . . . . . 1 . Artisan 2 | . . . 2 . . . . . . . . . . . . . . . . . . . . . . . . Cobbler 1 | . . . 1 . . . . . . . . . . . . . . . . . . . . . . . . Subdweller 3 | . . . 2 . . 1 . . . . . . . . . . . . . . . . . . . . . Elite 1 | . . . . . . . . . . . . . . . . . . . . . . . . . . . 1 Decomposer 1 | . . . . . . . . . . . . . . . 1 . . . . . . . . . . . . Packrat 1 | . . . . . . . . . . . . . . . . . . . . . . 1 . . . . . Samaritan 1 | . . . . . . . . . . . . . . . 1 . . . . . . . . . . . . Thug 1 | . . . . . . . . 1 . . . . . . . . . . . . . . . . . . . Wizard 2 | . . . . . . . . . . . . . . . . . . . . . . . . 1 1 . . Best Kill Streak 11 | 2 1 3 3 . . 5 4 3 3 4 3 6 5 1 . 7 4 3 1 2 4 . . 4 5 3 11 Combat Bots Only 11 | . . 2 2 . . 5 3 3 1 1 3 6 4 1 . 7 4 2 1 2 4 . . 4 4 3 11 Max Kills in Single Turn 4 | 1 1 1 1 . . 4 2 1 1 2 2 1 3 1 1 3 4 1 1 2 4 1 . 4 1 1 3 Gunslinging 1 | . . . . . . . 1 . . . . . . . . . . . . . . . . . . . . Exploded 4 | . . . . . . 4 2 . . 1 2 . 2 . . 3 4 . 1 2 4 . . 4 1 . 3 Melee 1 | . . . . . . . . . . . . . 1 1 . . . . . 1 . . . 1 1 1 . Uniques/NPCs Destroyed . | . . . . . . . . . . . . . . . . . . . . . . . . . . . . Combat | -11 -10 -10 -10 -8 -8 -6 -6 -6 -6 -6 -5 -5 -5 -5 -5 -5 -4 -4 -4 -4 -4 -4 -4 -3 -3 -3 -3 -------- Run | Yrd Mat Min Sub Rec Scr Fac Ext Cet Arc Hub Fac Gar Fac Upp Upp War Pro Fac Was Fac Upp Upp Zhi Pro Res Qua Frg Hostile Shots Fired 1147 | . 2 9 40 . . 155 63 28 7 45 37 75 76 18 . 44 12 7 . 38 2 . . 17 119 153 200 Missed 393 | . 1 2 21 . . 64 25 10 6 11 16 23 20 7 . 20 8 4 . 15 . . . 9 37 37 57 Deflected 14 | . . . . . . . . . . . . . . . . . . . . . . . . . . . 14 Hits 754 | . 1 7 19 . . 91 38 18 1 34 21 52 56 11 . 24 4 3 . 23 2 . . 8 82 116 143 Melee 16 | . . . . . . . . . . 4 4 1 . . . 2 . . . . . . . . . . 5 Projectile 738 | . 1 7 19 . . 91 38 18 1 30 17 51 56 11 . 22 4 3 . 23 2 . . 8 82 116 138 AOE 6 | . . . . . . . . . . . 1 . . . . 1 . . . . . . . 1 2 . 1 Critical Strikes 42 | . . . . . . 3 1 2 . 2 5 1 1 . . 5 . 1 . 2 . . . 1 4 5 9 Part Disruptions 3 | . . . . . . . . . . . . . . . . . . . . . . . . . . 1 2 Damage Taken 17270 | . 10 111 334 . 180 1379 573 543 53 696 700 941 1146 55 . 606 93 112 . 445 42 . . 333 1971 2576 4371 Core 2836 | . . 14 41 . . 137 44 . . 216 127 71 280 . . 250 67 30 . 175 . . . 63 330 183 808 Absorbed by Shields 219 | . . . . . . . 88 . . . . 11 112 . . 8 . . . . . . . . . . . Redirected to Core 24 | . . . . . . . . . . . . . . . . . . . . . . . . . . 24 . Regen/Repaired (Parts) 1977 | . . . . . . . 188 . . . . . 156 . . 18 . 71 . . . . . . 360 1144 40 Core Remaining (%) 65 | 100 . . . . 78 . . . . 53 . . . . . . 20 . . . . . . 76 . . . Volleys Fired 652 | 4 3 11 55 1 . 89 60 19 38 21 11 56 33 1 2 26 1 24 6 6 1 . . 34 56 20 74 Largest 3 | 2 2 2 2 2 . 3 3 3 3 1 1 2 2 1 1 1 1 2 1 1 1 . . 1 1 1 2 Hottest 235 | 70 46 46 90 90 . 235 200 155 160 90 90 170 116 58 58 160 60 120 65 65 60 . . 60 113 113 152 Shots Fired 888 | 8 6 22 76 2 . 141 112 46 59 21 11 81 38 1 2 26 1 26 6 6 1 . . 34 56 19 87 Gun 344 | 8 6 22 73 2 . 16 94 37 36 . . 14 5 . . . . 6 3 2 . . . . . 10 10 Cannon 451 | . . . . . . 111 15 9 23 20 7 66 30 1 2 19 . 20 . 1 . . . 28 44 9 46 Launcher 86 | . . . 3 . . 12 1 . . 1 4 . 3 . . 7 1 . 3 3 1 . . 6 12 . 29 Special 7 | . . . . . . 2 2 . . . . 1 . . . . . . . . . . . . . . 2 Kinetic 447 | 4 6 22 70 1 . 39 53 30 36 . . 18 29 1 2 19 . 20 . 1 . . . 28 11 15 42 Thermal 317 | 4 . . 3 1 . 72 56 16 23 20 7 62 6 . . . . . . . . . . . 29 4 14 Explosive 68 | . . . 3 . . 12 1 . . 1 4 . 3 . . 6 1 . 3 3 1 . . 6 5 . 19 Electromagnetic 48 | . . . . . . 16 . . . . . . . . . . . 6 3 2 . . . . 11 . 10 Entropic 1 | . . . . . . . . . . . . . . . . 1 . . . . . . . . . . . Robot Hit Streak 15 | 3 3 13 8 1 . 14 12 5 14 15 4 12 6 . . 3 . 10 9 3 . . . 4 7 11 7 Robot Miss Streak 7 | 1 2 1 4 1 . 3 7 3 3 5 . 3 3 . . 3 . 2 1 2 . . . 2 3 3 6 Penetration Max 1 | . . . . . . . . 1 1 . . . . . . . . . . . . . . . . . . Secondary Targets 4 | . . . 2 . . . 2 . . . . . . . . . . . . . . . . . . . . Max Gunslinging Chain 1 | . . . 1 . . . 1 . . . . . . . . . . . . . . . . . . . . Shots Hit Robots 597 | 6 3 17 33 1 3 74 74 29 39 6 4 50 41 3 2 9 . 23 3 7 . 1 4 34 54 43 34 Core Hits 461 | 5 1 6 17 1 . 46 35 14 15 6 5 26 16 2 2 31 2 14 3 8 4 . 1 26 44 16 115 Critical Kills 9 | . . . . . . 1 2 1 5 . . . . . . . . . . . . . . . . . . Critical Parts Destroyed 9 | . 1 . 1 . . . 1 . 6 . . . . . . . . . . . . . . . . . . Critical Strikes 41 | . 1 . 1 . . 3 4 2 12 . . 2 3 . . 1 . 2 . . . . . 1 7 1 1 Burn 2 | . . . . . . . 1 . . . . . 1 . . . . . . . . . . . . . . Meltdown 2 | . . . . . . 1 1 . . . . . . . . . . . . . . . . . . . . Destroy 18 | . 1 . 1 . . . 2 2 12 . . . . . . . . . . . . . . . . . . Blast 9 | . . . . . . 2 . . . . . 2 1 . . 1 . 2 . . . . . . . . 1 Sever 3 | . . . . . . . . . . . . . . . . . . . . . . . . 1 1 1 . Impale 7 | . . . . . . . . . . . . . 1 . . . . . . . . . . . 6 . . Melee Attacks 257 | . . . . . 3 . 1 . . . 1 . 45 5 3 1 . 14 . 17 . 1 5 25 67 69 . Kinetic 1 | . . . . . . . . . . . . . . . . . . . . . . . . . . 1 . Impact . | . . . . . . . . . . . . . . . . . . . . . . . . . . . . Slashing 86 | . . . . . . . . . . . . . . . . . . . . . . 1 4 14 12 55 . Piercing 165 | . . . . . . . . . . . . . 45 5 3 1 . 14 . 17 . . 1 11 55 13 . Sneak Attacks 32 | . . . . . 3 . 1 . . . 1 . 4 . 2 . . 5 . . . 1 . 5 5 5 . Combat Hostiles . | . . . . . . . . . . . . . . . . . . . . . . . . . . . . Follow-up Attacks 6 | . . . . . . . . . . . . . . . . . . . . . . . . 3 3 . . Damage Inflicted 38553 | 61 42 280 572 16 . 3933 1949 831 1194 531 484 1789 2788 174 159 3273 454 1244 766 500 561 88 403 3231 3343 3006 6881 Guns 5015 | 61 42 280 572 16 . 236 1495 636 713 . . 168 79 . . . . 114 3 16 . . . . . 412 172 Cannons 8759 | . . . . . . 1664 258 195 479 162 . 1561 842 . . 720 . 581 . . . . . 671 505 259 862 Explosions 16551 | . . . . . . 1998 196 . . 308 484 60 508 . . 2553 454 . 763 327 561 . . 1354 1138 . 5847 Melee 8130 | . . . . . . . . . . . . . 1359 174 159 . . 549 . 157 . 88 403 1206 1700 2335 . Ramming 98 | . . . . . . 35 . . 2 61 . . . . . . . . . . . . . . . . . Kinetic 8509 | 36 42 280 528 16 . 647 859 528 713 . . 513 842 . . 720 . 581 . . . . . 671 . 671 862 Thermal 5475 | 25 . . 44 . . 1475 894 303 479 162 . 1276 79 . . . . . . . . . . . 515 . 223 Explosive 12907 | . . . . . . 1540 196 . . 308 484 . 508 . . 2206 454 . 763 327 561 . . 1354 479 . 3727 Electromagnetic 3087 | . . . . . . 236 . . . . . . . . . . . 114 3 16 . . . . 649 . 2069 Impact . | . . . . . . . . . . . . . . . . . . . . . . . . . . . . Slashing 3691 | . . . . . . . . . . . . . . . . . . . . . . 88 403 909 114 2177 . Piercing 4439 | . . . . . . . . . . . . . 1359 174 159 . . 549 . 157 . . . 297 1586 158 . Entropic 347 | . . . . . . . . . . . . . . . . 347 . . . . . . . . . . . Highest Corruption 16 | . . . . . 4 2 2 1 1 . 1 6 6 4 . . . . . 1 1 1 1 15 9 16 16 Average Corruption 6 | . . . . . 4 1 1 1 1 . 1 1 5 4 . . . . . 1 1 1 1 1 6 11 16 Corruption Purged 5 | . . . . . . . 1 . 1 . . . 3 . . . . . . . . . . . . . . Corruption Blocked 5 | . . . . . . . . . . . . . . . . . . . . . . . . . . 1 4 Effects 228 | . . . . . 6 4 6 3 2 . . 7 32 4 . . . . . . 3 3 1 3 25 56 73 Message Errors 50 | . . . . . . 2 2 1 2 . . 5 8 1 . . . . . . 1 . . 2 6 11 9 Matter Fused 60 | . . . . . 1 . 2 1 . . . 1 11 1 . . . . . . 1 . . 1 7 13 21 Heat Flow Errors 27 | . . . . . 1 1 1 . . . . . 3 . . . . . . . . 1 . . 3 8 9 Energy Discharges 32 | . . . . . 2 . 1 . . . . . 5 1 . . . . . . . 1 . . 3 12 7 Parts Rejected 3 | . . . . . . . . . . . . . 1 . . . . . . . . . . . . 1 1 Parts Fused 1 | . . . . . . . . . . . . . . . . . . . . . . . . . . 1 . Data Loss (minor) 26 | . . . . . 2 1 . . . . . 1 2 . . . . . . . 1 . 1 . 2 5 11 Data Loss (major) 12 | . . . . . . . . . . . . . 2 . . . . . . . . . . . 2 2 6 Misfires 1 | . . . . . . . . 1 . . . . . . . . . . . . . . . . . . . Alerts 9 | . . . . . . . . . . . . . . 1 . . . . . . . 1 . . 2 2 3 Misdirections 2 | . . . . . . . . . . . . . . . . . . . . . . . . . . . 2 Weapon Failures 5 | . . . . . . . . . . . . . . . . . . . . . . . . . . 1 4 Overload Shots . | . . . . . . . . . . . . . . . . . . . . . . . . . . . . Overflow Damage 2341 | . . . . . . 321 6 . 94 19 92 73 394 . . 65 93 31 90 . . 81 245 153 75 445 64 Projectiles 392 | . . . . . . 19 . . 94 2 . 73 47 . . . . 15 . . . . . 11 7 100 24 Explosions 799 | . . . . . . 302 6 . . 5 92 . 23 . . 65 93 . 90 . . . . 83 . . 40 Melee 1150 | . . . . . . . . . . 12 . . 324 . . . . 16 . . . 81 245 59 68 345 . Knockbacks 22 | . . . . . . 7 . . . . . 4 2 . . 1 . 3 . . . . . 2 . . 3 Impact . | . . . . . . . . . . . . . . . . . . . . . . . . . . . . Kinetic 22 | . . . . . . 7 . . . . . 4 2 . . 1 . 3 . . . . . 2 . . 3 Secondary . | . . . . . . . . . . . . . . . . . . . . . . . . . . . . Self-Inflicted Damage 871 | . . . . . . 230 . . 1 56 279 . . . . . . . . . . . . 95 31 . 179 Shots 26 | . . . . . . 6 . . . 1 4 . . . . . . . . . . . . 1 1 . 13 Rammed 7 | . . . . . . . . . 1 6 . . . . . . . . . . . . . . . . . Targets Rammed 9 | . . . . . . 2 . . 1 6 . . . . . . . . . . . . . . . . . Kicked 2 | . . . . . . 2 . . . . . . . . . . . . . . . . . . . . . Crushed . | . . . . . . . . . . . . . . . . . . . . . . . . . . . . Highest Temperature 369 | 40 . 60 . 15 255 366 331 252 126 165 189 264 366 6 12 319 . 369 86 2 3 269 3 2 255 157 158 Average Temperature 70 | 20 . 39 . 10 129 112 76 94 27 67 76 84 85 4 7 74 . 72 29 2 2 15 2 2 51 87 58 Received Heat Transfer 1841 | . . 60 90 . . 258 177 45 9 156 45 216 225 . . 54 36 12 . 88 9 . . 18 106 102 135 Effects 13 | . . . . . 1 7 1 1 . . . 2 . . . . . . . . . 1 . . . . . Shutdowns 1 | . . . . . . . 1 . . . . . . . . . . . . . . . . . . . . Energy Bleed 5 | . . . . . . 3 . 1 . . . . . . . . . . . . . 1 . . . . . Interference 7 | . . . . . 1 4 . . . . . 2 . . . . . . . . . . . . . . . Siege Activations . | . . . . . . . . . . . . . . . . . . . . . . . . . . . . Martial Activations . | . . . . . . . . . . . . . . . . . . . . . . . . . . . . Shielding Activations 2 | . . . . . . . . . . . . . . . . . . . . . . . . . . . 2 Total Turns 45 | . . . . . . . . . . . . . . . . . . . . . . . . . . . 45 Longest Duration 36 | . . . . . . . . . . . . . . . . . . . . . . . . . . . 36 Robots Disrupted 1 | . . . . . . . . . . . . . . . . . . . 1 . . . . . . . . Combat Hostiles 1 | . . . . . . . . . . . . . . . . . . . 1 . . . . . . . . Robots Corrupted 6 | . . . . . . 1 . . . 1 . . . . . . . . . . . . . . 1 . 3 Combat Hostiles 5 | . . . . . . 1 . . . . . . . . . . . . . . . . . . 1 . 3 Parts Fried 10 | . . . . . . . . . . . . . . . . . . . . . . . . . 2 . 8 Impact Corruptions 1 | . . . . . . . . . . 1 . . . . . . . . . . . . . . . . . Robots Melted 2 | . . . . . . 1 1 . . . . . . . . . . . . . . . . . . . . Combat Hostiles 2 | . . . . . . 1 1 . . . . . . . . . . . . . . . . . . . . Parts Melted 17 | . . . . . . 4 9 2 . . . . . . . . . . . . . . . . 2 . . Heat Transferred 6508 | 74 . . 50 . . 1575 1780 550 750 250 . 500 250 . . . . . . . . . . . 457 . 272 Parts Sabotaged 4 | . . . . . . . . . . . . . . . . 4 . . . . . . . . . . . Parts Stolen . | . . . . . . . . . . . . . . . . . . . . . . . . . . . . Parts Stripped 12 | . . . . . . . . . . . . . . . . . . . . . . . . . . 12 . Power Chain Reactions 7 | . . . . . . 2 . . . . . 1 . . . . . . . . . . . 1 1 . 2 Alert | -11 -10 -10 -10 -8 -8 -6 -6 -6 -6 -6 -5 -5 -5 -5 -5 -5 -4 -4 -4 -4 -4 -4 -4 -3 -3 -3 -3 ------- Run | Yrd Mat Min Sub Rec Scr Fac Ext Cet Arc Hub Fac Gar Fac Upp Upp War Pro Fac Was Fac Upp Upp Zhi Pro Res Qua Frg Maximum Alert Level 5 | . . . . . . 2 5 3 2 . . 2 2 . . . . 2 . 2 . . . . 1 . 2 Low Security (%) 74 | 100 100 100 . 100 . 83 . . 91 100 100 11 28 . . . . 7 100 65 . . . . 77 100 48 Level 1 10 | . . . . . . 3 11 . 4 . . 56 27 . . . . 35 . 33 . . . . 22 . 25 Level 2 10 | . . . . . . 12 32 . 3 . . 31 44 . . . . 56 . . . . . . . . 26 Level 3 2 | . . . . . . . 26 100 . . . . . . . . . . . . . . . . . . . Level 4 1 | . . . . . . . 23 . . . . . . . . . . . . . . . . . . . . Level 5 . | . . . . . . . 4 . . . . . . . . . . . . . . . . . . . . High Security . | . . . . . . . . . . . . . . . . . . . . . . . . . . . . Max Security . | . . . . . . . . . . . . . . . . . . . . . . . . . . . . Peak Influence 1615 | 10 17 50 . 80 . 487 1615 1079 488 129 198 493 631 . . . . 542 165 423 . . . . 279 153 638 Initial 893 | . . . . 27 . . 226 893 403 . 53 138 253 . . . . 216 165 41 . . . . 66 108 78 Average 153 | 1 3 4 . 18 . 128 826 987 37 27 83 318 357 . . . . 371 106 161 . . . . 124 69 292 Influence Increases 13284 | 15 24 55 221 294 . 1021 2043 396 263 332 385 385 974 25 160 390 156 1248 74 742 285 . 14 670 1197 725 1190 Destroy 0b10 Robot/C 5680 | . . 40 120 60 . 540 880 160 80 120 80 220 440 20 100 360 80 340 . 240 160 . . 400 460 180 600 Destroy 0b10 Robot/NC 415 | 15 5 5 . . . 20 30 10 45 20 . 20 40 5 . . 5 50 . 5 . . 10 25 55 35 15 Destroy Leader 878 | . 2 10 10 . . 132 112 . . 36 20 20 104 . 10 . 10 86 . 40 20 . . 40 122 34 70 Allied During Kill 1925 | . . . 31 29 . 15 840 167 69 30 . . 51 . 50 . 1 347 . 39 75 . 4 100 46 . 31 Successful Hack 753 | . 17 . . 25 . 15 56 . . 3 29 . 138 . . . . 106 . 95 . . . . 61 94 114 Select Force Hacks 250 | . . . . 180 . . . . . 50 20 . . . . . . . . . . . . . . . . Disable Machine 915 | . . . . . . 120 60 45 60 30 60 60 30 . . . . 15 . 75 . . . . . 120 240 Destroy Structure 953 | . . . . . . 149 35 14 9 28 26 50 96 . . . . 64 74 158 . . . . 198 22 30 Advance Influence 150 | . . . . . . . . . . . . . . . . . . 150 . . . . . . . . . Partial Spotted 90 | . . . . . . . . . . 15 30 . . . . . . . . . . . . . . . 45 Lose Combat Pursuer 1275 | . . . 60 . . 30 30 . . . 120 15 75 . . 30 60 90 . 90 30 . . 105 255 240 45 Influence Decreases 12690 | 15 24 55 163 352 . 558 909 984 1272 223 296 100 858 362 326 326 210 882 487 378 327 214 181 572 1103 777 736 Entered New Map 3394 | . . . . 31 . . 237 704 606 . 56 60 230 222 51 96 160 40 307 18 157 74 167 . 32 84 62 Time Decay 6523 | 15 24 55 113 321 . 488 452 180 586 73 190 . 458 130 275 160 50 422 160 180 90 140 14 412 491 510 534 Lost Part 600 | . . . 10 . . 30 . . . 50 50 40 90 10 . 70 . 10 . . . . . . 70 60 110 Lost Ally 1450 | . . . 40 . . 40 220 100 80 100 . . 80 . . . . 260 20 180 80 . . 160 60 . 30 Purge Threat 723 | . . . . . . . . . . . . . . . . . . 150 . . . . . . 450 123 . Squads Dispatched 94 | . . . . . . 11 7 . . 8 3 . 15 . . . . 10 . 10 . . . . 12 7 11 Investigation 37 | . . . . . . 5 2 . . 4 1 . 6 . . . . 4 . 3 . . . . 5 2 5 Extermination 19 | . . . . . . 3 . . . . 1 . 4 . . . . 3 . 1 . . . . 3 4 . Reinforcement 28 | . . . . . . 3 2 . . 3 1 . 5 . . . . 1 . 3 . . . . 3 1 6 Assault 5 | . . . . . . . 3 . . . . . . . . . . 2 . . . . . . . . . Garrison 5 | . . . . . . . . . . 1 . . . . . . . . . 3 . . . . 1 . . Intercept . | . . . . . . . . . . . . . . . . . . . . . . . . . . . . Searches Triggered . | . . . . . . . . . . . . . . . . . . . . . . . . . . . . Construction Impeded 6 | . . . . . . 2 . . . 1 . . 2 . . . . . . . . . . . 1 . . Haulers Reinforced 2 | . . . . . . . . . . . . . . . . . . . . . . . . . 2 . . Active Scanning Responses . | . . . . . . . . . . . . . . . . . . . . . . . . . . . . Cargo Convoy Interrupts . | . . . . . . . . . . . . . . . . . . . . . . . . . . . . Stealth | -11 -10 -10 -10 -8 -8 -6 -6 -6 -6 -6 -5 -5 -5 -5 -5 -5 -4 -4 -4 -4 -4 -4 -4 -3 -3 -3 -3 --------- Run | Yrd Mat Min Sub Rec Scr Fac Ext Cet Arc Hub Fac Gar Fac Upp Upp War Pro Fac Was Fac Upp Upp Zhi Pro Res Qua Frg Distress Signals 52 | . . . . . . 2 4 2 . 2 1 . 1 . . 3 . . . . . . . 25 4 1 7 Communications Jammed 13 | . . . . . . . . . . . 12 . . . . . . . . . . . . . 1 . . Distress Signals 13 | . . . . . . . . . . . 12 . . . . . . . . . . . . . 1 . . Times Spotted 517 | . 5 2 22 2 . 32 48 10 20 22 22 17 27 2 1 60 7 19 2 13 2 . . 21 48 34 79 Peak Tracking Total 19 | . 3 2 5 1 . 4 7 5 2 14 9 4 6 1 1 19 6 5 2 4 1 . . 4 6 7 13 Tactical Retreats 50 | . . . 2 . . 2 2 . . . 4 1 2 . . 2 1 4 1 4 2 . . 4 8 8 3 Traps | -11 -10 -10 -10 -8 -8 -6 -6 -6 -6 -6 -5 -5 -5 -5 -5 -5 -4 -4 -4 -4 -4 -4 -4 -3 -3 -3 -3 ------- Run | Yrd Mat Min Sub Rec Scr Fac Ext Cet Arc Hub Fac Gar Fac Upp Upp War Pro Fac Was Fac Upp Upp Zhi Pro Res Qua Frg Traps Triggered 15 | . . . 2 . 1 2 . . . . . 2 5 . . . . 1 . . . . . . . 2 . Indirectly . | . . . . . . . . . . . . . . . . . . . . . . . . . . . . Trap Hack Attempts . | . . . . . . . . . . . . . . . . . . . . . . . . . . . . Triggered . | . . . . . . . . . . . . . . . . . . . . . . . . . . . . Disarmed . | . . . . . . . . . . . . . . . . . . . . . . . . . . . . Reprogrammed . | . . . . . . . . . . . . . . . . . . . . . . . . . . . . Reused . | . . . . . . . . . . . . . . . . . . . . . . . . . . . . Traps Extracted . | . . . . . . . . . . . . . . . . . . . . . . . . . . . . Installed 1 | . . . . . 1 . . . . . . . . . . . . . . . . . . . . . . Triggered . | . . . . . . . . . . . . . . . . . . . . . . . . . . . . Most Traps Carried 6 | . . . 1 1 1 . . . . . . 6 6 6 6 6 . . . . . . . . . . . Machines | -11 -10 -10 -10 -8 -8 -6 -6 -6 -6 -6 -5 -5 -5 -5 -5 -5 -4 -4 -4 -4 -4 -4 -4 -3 -3 -3 -3 ---------- Run | Yrd Mat Min Sub Rec Scr Fac Ext Cet Arc Hub Fac Gar Fac Upp Upp War Pro Fac Was Fac Upp Upp Zhi Pro Res Qua Frg Machines Disabled 71 | . . . 4 . . 8 4 4 4 2 4 4 2 . . 1 . 1 . 5 . . . 3 . 8 17 Max in Single Turn 7 | . . . 1 . . 4 1 1 1 1 4 1 1 . . 1 . . . 2 . . . 1 . 1 7 Garrison Access 4 | . . . . . . . . . . . . . . . . . . . . . . . . . 3 1 . Network Hub 2 | . . . . . . . . . . 2 . . . . . . . . . . . . . . . . . Machines Repaired . | . . . . . . . . . . . . . . . . . . . . . . . . . . . . Machines Dismantled 3 | . . . . . . . 2 1 . . . . . . . . . . . . . . . . . . . Machines Sabotaged 1 | . . . . . . . . . . 1 . . . . . . . . . . . . . . . . . Overloaded Fab Kills . | . . . . . . . . . . . . . . . . . . . . . . . . . . . . Hacking | -11 -10 -10 -10 -8 -8 -6 -6 -6 -6 -6 -5 -5 -5 -5 -5 -5 -4 -4 -4 -4 -4 -4 -4 -3 -3 -3 -3 --------- Run | Yrd Mat Min Sub Rec Scr Fac Ext Cet Arc Hub Fac Gar Fac Upp Upp War Pro Fac Was Fac Upp Upp Zhi Pro Res Qua Frg Machines Accessed 138 | . 2 . 1 12 5 10 13 1 . 4 7 . 14 . . 8 . 11 . 9 . . 4 . 18 10 9 Terminals 56 | . 2 . . 6 . 3 12 1 . 4 2 . 4 . . . . 3 . 5 . . . . 6 6 2 Fabricators 15 | . . . . . . 2 . . . . 3 . 2 . . . . 2 . 1 . . . . 1 . 4 Repair Stations 7 | . . . . . . 1 . . . . 1 . 1 . . . . 1 . . . . . . 2 1 . Recycling Units 23 | . . . . 6 . 3 1 . . . . . 3 . . . . 2 . 2 . . . . 3 . 3 Scanalyzers 13 | . . . . . . . . . . . . . 4 . . . . 3 . 1 . . . . 3 2 . Garrison Access 6 | . . . . . . 1 . . . . 1 . . . . . . . . . . . . . 3 1 . Total Hacks 595 | . 9 . 1 40 25 21 26 1 . 11 28 . 103 . . 18 . 92 . 34 . . 17 . 91 45 33 Successful 404 | . 3 . 1 27 25 9 10 . . 10 18 . 60 . . 18 . 60 . 25 . . 17 . 68 32 21 Failed 190 | . 6 . . 12 . 12 16 1 . 1 10 . 43 . . . . 32 . 9 . . . . 23 13 12 Catastrophic 27 | . 2 . . 1 . 2 5 1 . . 2 . 4 . . . . 2 . 1 . . . . 4 3 . Database Lockouts 1 | . . . . 1 . . . . . . . . . . . . . . . . . . . . . . . Manual 159 | . 5 . . 26 . 10 4 . . 8 12 . 23 . . . . 19 . 13 . . . . 16 13 10 Terminals 248 | . 9 . . 26 . 8 24 1 . 11 14 . 15 . . . . 43 . 21 . . . . 33 32 11 Fabricators 82 | . . . . . . 3 . . . . 12 . 27 . . . . 13 . 3 . . . . 6 . 18 Repair Stations 32 | . . . . . . 4 . . . . 1 . 6 . . . . 5 . . . . . . 8 8 . Recycling Units 61 | . . . . 14 . 4 2 . . . . . 12 . . . . 8 . 5 . . . . 12 . 4 Scanalyzers 102 | . . . . . . . . . . . . . 43 . . . . 23 . 5 . . . . 27 4 . Garrison Access 9 | . . . . . . 2 . . . . 1 . . . . . . . . . . . . . 5 1 . Terminal Hacks 156 | . 3 . 1 4 25 . 9 . . 3 5 . 5 . . 18 . 17 . 12 . . 17 . 16 17 4 Record 36 | . . . . . 20 . . . . . . . . . . 11 . . . . . . 5 . . . . Part Schematic 17 | . 1 . . 1 . . . . . . . . 2 . . . . 5 . 2 . . 4 . 1 . 1 Robot Analysis 11 | . . . . 1 4 . . . . . . . . . . . . . . . . . 4 . 1 1 . Prototype ID Bank 13 | . 1 . . . . . . . . 1 . . . . . 5 . 1 . . . . 4 . . 1 . Open Door 11 | . . . . . . . 8 . . . . . . . . 2 . . . . . . . . . 1 . Open DSF 2 | . . . . . . . . . . . . . 1 . . . . 1 . . . . . . . . . Level Access Points 1 | . . . . . . . . . . . . . . . . . . 1 . . . . . . . . . Branch Access Points 5 | . . . . . . . . . . . 1 . 1 . . . . 1 . 1 . . . . 1 . . Emergency Access Points 3 | . . . . 1 . . . . . 1 . . . . . . . 1 . . . . . . . . . Machine Index 3 | . . . . . . . . . . . . . . . . . . 1 . 1 . . . . 1 . . Alert Level 2 | . . . . . . . . . . . . . . . . . . 1 . . . . . . . . 1 Unreport Threat 5 | . . . . . . . . . . . . . . . . . . . . . . . . . 3 2 . Locate Traps 10 | . . . . . . . 1 . . . 1 . 1 . . . . 1 . 1 . . . . 2 2 1 Extermination Status 2 | . . . . . . . . . . . . . . . . . . 1 . . . . . . . 1 . Reinforcement Status 1 | . . . . . . . . . . . . . . . . . . 1 . . . . . . . . . Recall Investigation 6 | . . . . . . . . . . . . . . . . . . . . 1 . . . . 3 2 . Recall Extermination 5 | . . . . . . . . . . . 1 . . . . . . . . . . . . . 1 3 . Recall Reinforcements 1 | . . . . . . . . . . . . . . . . . . . . 1 . . . . . . . Hauler Manifests 3 | . . . . . . . . . . . . . . . . . . 1 . 1 . . . . . 1 . Registered Components 5 | . . . . . . . . . . . 1 . . . . . . 1 . 1 . . . . . 1 1 Registered Prototypes 2 | . . . . . . . . . . . . . . . . . . . . 1 . . . . . 1 . Zone Layout 10 | . 1 . . 1 . . . . . 1 1 . . . . . . . . 2 . . . . 3 1 . Proto ID Catalog 2 | . . . 1 . 1 . . . . . . . . . . . . . . . . . . . . . . Fabricator Hacks 30 | . . . . . . 1 . . . . 3 . 7 . . . . 6 . 2 . . . . 2 . 9 Network Status 7 | . . . . . . 1 . . . . 2 . 1 . . . . 1 . 1 . . . . 1 . . Load Schematic 10 | . . . . . . . . . . . . . 3 . . . . 2 . 1 . . . . 1 . 3 Build 13 | . . . . . . . . . . . 1 . 3 . . . . 3 . . . . . . . . 6 Repair Station Hacks 26 | . . . . . . 1 . . . . 1 . 4 . . . . 4 . . . . . . 8 8 . Scan Component 13 | . . . . . . 1 . . . . . . 2 . . . . 2 . . . . . . 4 4 . Repair 12 | . . . . . . . . . . . . . 2 . . . . 2 . . . . . . 4 4 . Refit 1 | . . . . . . . . . . . 1 . . . . . . . . . . . . . . . . Recycling Unit Hacks 25 | . . . . 8 . 1 . . . . . . 5 . . . . 3 . 2 . . . . 6 . . Process 1 | . . . . . . . . . . . . . . . . . . . . . . . . . 1 . . Report Inventory 17 | . . . . 6 . 1 . . . . . . 3 . . . . 2 . 2 . . . . 3 . . Retrieve Matter 2 | . . . . . . . . . . . . . . . . . . . . . . . . . 2 . . Retrieve Components 5 | . . . . 2 . . . . . . . . 2 . . . . 1 . . . . . . . . . Scanalyzer 76 | . . . . . . . . . . . . . 27 . . . . 19 . 4 . . . . 22 4 . Insert Component 37 | . . . . . . . . . . . . . 12 . . . . 9 . 2 . . . . 10 4 . Analyze 39 | . . . . . . . . . . . . . 15 . . . . 10 . 2 . . . . 12 . . Garrison Access Hacks 5 | . . . . . . . . . . . 1 . . . . . . . . . . . . . 3 1 . Unlock Access 1 | . . . . . . . . . . . 1 . . . . . . . . . . . . . . . . Seal Access 4 | . . . . . . . . . . . . . . . . . . . . . . . . . 3 1 . Unauthorized Hacks 86 | . . . . 15 . 6 1 . . 7 8 . 12 . . . . 11 . 5 . . . . 11 2 8 Terminals 36 | . . . . 9 . 2 . . . 7 1 . 1 . . . . 4 . 2 . . . . 3 2 5 Track 8 | . . . . 1 . . . . . 1 . . . . . . . 1 . . . . . . 2 1 2 Botnet 14 | . . . . 2 . 1 . . . 1 1 . 1 . . . . 2 . 2 . . . . 1 1 2 Disrupt 2 | . . . . 1 . . . . . . . . . . . . . . . . . . . . . . 1 Operators 2 | . . . . . . 1 . . . . . . . . . . . 1 . . . . . . . . . Skim 6 | . . . . 5 . . . . . 1 . . . . . . . . . . . . . . . . . Sabotage 4 | . . . . . . . . . . 4 . . . . . . . . . . . . . . . . . Fabricators 26 | . . . . . . 1 . . . . 7 . 8 . . . . 5 . 1 . . . . 4 . . Report 5 | . . . . . . . . . . . 1 . 2 . . . . 1 . . . . . . 1 . . Prioritize 5 | . . . . . . . . . . . 2 . 2 . . . . 1 . . . . . . . . . Liberate 5 | . . . . . . . . . . . 2 . 1 . . . . 1 . . . . . . 1 . . Haulers 5 | . . . . . . . . . . . 1 . 2 . . . . 1 . . . . . . 1 . . Download 1 | . . . . . . . . . . . 1 . . . . . . . . . . . . . . . . Recompile 5 | . . . . . . 1 . . . . . . 1 . . . . 1 . 1 . . . . 1 . . Repair Stations . | . . . . . . . . . . . . . . . . . . . . . . . . . . . . Recycling Units 23 | . . . . 6 . 3 1 . . . . . 3 . . . . 2 . 2 . . . . 3 . 3 Tunnel 6 | . . . . 6 . . . . . . . . . . . . . . . . . . . . . . . Fedlink 14 | . . . . . . 2 1 . . . . . 2 . . . . 2 . 2 . . . . 3 . 2 Scrapoids 2 | . . . . . . 1 . . . . . . 1 . . . . . . . . . . . . . . Scraphulk 1 | . . . . . . . . . . . . . . . . . . . . . . . . . . . 1 Scanalyzers . | . . . . . . . . . . . . . . . . . . . . . . . . . . . . Garrison Access 1 | . . . . . . . . . . . . . . . . . . . . . . . . . 1 . . Watchers 1 | . . . . . . . . . . . . . . . . . . . . . . . . . 1 . . Data Cores Recovered . | . . . . . . . . . . . . . . . . . . . . . . . . . . . . Used . | . . . . . . . . . . . . . . . . . . . . . . . . . . . . Hacking Detections 77 | . 2 . . 8 . 6 8 1 . 1 3 . 9 . . . . 8 . 8 . . . . 12 5 6 Full Trace Events 8 | . 1 . . 1 . . . . . . . . 2 . . . . 1 . . . . . . 1 1 1 Feedback Events 1 | . . . . . . . . . . . . . . . . . . . . . . . . . . 1 . Corruption 1 | . . . . . . . . . . . . . . . . . . . . . . . . . . 1 . Feedback Blocked . | . . . . . . . . . . . . . . . . . . . . . . . . . . . . Robot Schematics Acquired . | . . . . . . . . . . . . . . . . . . . . . . . . . . . . Robots Built 6 | . . . . . . . . . . . . . 2 . . . . 3 . . . . . . . . 1 Authchips . | . . . . . . . . . . . . . . . . . . . . . . . . . . . . Time 290 | . . . . . . . . . . . . . 76 . . . . 152 . . . . . . . . 62 Total Robot Build Rating 32 | . . . . . . . . . . . . . 10 . . . . 15 . . . . . . . . 7 Part Schematics Acquired 42 | . 1 . . 1 . . . . . . 1 . 11 . . . . 12 . 4 . . 4 . 7 . 1 Parts Built 15 | . . . . . . . . . . . 2 . 4 . . . . 3 . . . . . . . . 6 Authchips 4 | . . . . . . . . . . . . . 1 . . . . . . . . . . . . . 3 Time 606 | . . . . . . . . . . . 139 . 93 . . . . 94 . . . . . . . . 280 Total Part Build Rating 120 | . . . . . . . . . . . 18 . 30 . . . . 19 . . . . . . . . 53 Parts Repaired 12 | . . . . . . . . . . . . . 2 . . . . 2 . . . . . . 4 4 . Time 651 | . . . . . . . . . . . . . 56 . . . . 99 . . . . . . 178 318 . Parts Recycled . | . . . . . . . . . . . . . . . . . . . . . . . . . . . . Recycled Matter 209 | . . . . . . . . . . . . . . . . . . . . . . . . . 209 . . Retrieved Matter 381 | . . . . . . . . . . . . . . . . . . . . . . . . . 381 . . Retrieved Components 14 | . . . . 7 . . . . . . . . 4 . . . . 3 . . . . . . . . . Parts Scanalyzed 26 | . . . . . . . . . . . . . 10 . . . . 7 . 2 . . . . 7 . . Part Schematics Acquired 24 | . . . . . . . . . . . . . 9 . . . . 7 . 2 . . . . 6 . . Parts Damaged 5 | . . . . . . . . . . . . . 1 . . . . 2 . . . . . . 2 . . Bothacking | -11 -10 -10 -10 -8 -8 -6 -6 -6 -6 -6 -5 -5 -5 -5 -5 -5 -4 -4 -4 -4 -4 -4 -4 -3 -3 -3 -3 ------------ Run | Yrd Mat Min Sub Rec Scr Fac Ext Cet Arc Hub Fac Gar Fac Upp Upp War Pro Fac Was Fac Upp Upp Zhi Pro Res Qua Frg Used RIF Installer . | . . . . . . . . . . . . . . . . . . . . . . . . . . . . Robots Hacked 5 | . . . . . 3 . 1 . . . 1 . . . . . . . . . . . . . . . . Non-combat 1 | . . . . . . . . . . . 1 . . . . . . . . . . . . . . . . Combat 4 | . . . . . 3 . 1 . . . . . . . . . . . . . . . . . . . . Robot Hacks Applied 5 | . . . . . 3 . 1 . . . 1 . . . . . . . . . . . . . . . . parse_system 4 | . . . . . 3 . 1 . . . . . . . . . . . . . . . . . . . . find_chute 1 | . . . . . . . . . . . 1 . . . . . . . . . . . . . . . . Relay Couplers Released 2 | . . . . . . . . . . . . . . . . . . . . . . . . . 2 . . Machine Destruction 2 | . . . . . . . . . . . . . . . . . . . . . . . . . 2 . . Fabnet Peak Effective % . | . . . . . . . . . . . . . . . . . . . . . . . . . . . . Robots Rewired 12 | . . . . . . . 10 . . . . . . . . . . 1 1 . . . . . . . . Allies Hacked 2 | . . . . . . . . . . . . . 2 . . . . . . . . . . . . . . Hacks Repelled . | . . . . . . . . . . . . . . . . . . . . . . . . . . . . Allies | -11 -10 -10 -10 -8 -8 -6 -6 -6 -6 -6 -5 -5 -5 -5 -5 -5 -4 -4 -4 -4 -4 -4 -4 -3 -3 -3 -3 -------- Run | Yrd Mat Min Sub Rec Scr Fac Ext Cet Arc Hub Fac Gar Fac Upp Upp War Pro Fac Was Fac Upp Upp Zhi Pro Res Qua Frg Total Allies 111 | . . . 13 . . 5 27 . . . 3 . 7 . 4 . 4 15 1 10 8 . . 6 6 . 2 Largest Group 19 | . . . 11 9 8 3 19 18 10 5 3 . 5 . 4 4 4 9 1 4 4 4 4 4 2 . 2 Highest-Rated Group 723 | . . . 209 171 152 84 723 640 400 136 87 . 244 . 324 312 324 513 117 324 324 324 324 324 162 . 175 Highest-Rated Ally 159 | . . . 19 19 19 28 159 153 153 34 29 . 50 . 81 81 81 81 117 81 81 81 81 81 81 . 139 Total Orders 4 | . . . . . . . . . 2 . . . . . . . . . 1 . . . . . . . 1 STAY 2 | . . . . . . . . . 1 . . . . . . . . . 1 . . . . . . . . FOLLOW 1 | . . . . . . . . . 1 . . . . . . . . . . . . . . . . . . AID 1 | . . . . . . . . . . . . . . . . . . . . . . . . . . . 1 Ally Attacks 754 | . . . 49 11 . 19 229 73 16 14 7 . 50 . 22 . 6 97 6 43 21 . . 31 28 . 32 Total Damage 19858 | . . . 728 177 . 329 4755 1765 260 363 134 . 1489 . 313 . 187 2859 9 1313 555 . . 1441 1460 . 1721 Kills 137 | . . . 4 4 . 3 31 8 4 5 1 . 12 . 5 . 1 17 . 10 4 . . 9 11 . 8 Allies Corrupted 4 | . . . . . . . 3 . . . . . 1 . . . . . . . . . . . . . . Allies Melted 2 | . . . . . . . . . . . . . . . . 1 . . . . . . . . . . 1 Intel | -11 -10 -10 -10 -8 -8 -6 -6 -6 -6 -6 -5 -5 -5 -5 -5 -5 -4 -4 -4 -4 -4 -4 -4 -3 -3 -3 -3 ------- Run | Yrd Mat Min Sub Rec Scr Fac Ext Cet Arc Hub Fac Gar Fac Upp Upp War Pro Fac Was Fac Upp Upp Zhi Pro Res Qua Frg Active Infowar (turns) 15013 | 21 17 . . . . 1102 749 . 63 169 385 684 1155 262 678 1457 121 1026 336 363 199 294 176 1021 1523 1758 1454 Optics 12253 | . . . . . . . . . . . . 613 1155 262 678 1457 121 1026 336 363 199 294 176 1021 1523 1758 1271 Sensors 11059 | . . . . . . 1016 730 . 63 132 . . 826 225 598 665 99 937 316 304 198 294 173 882 1467 1526 608 Terrain 2537 | 21 17 . . . . 20 19 . . . 379 3 151 . . . . . . . . . . . 934 796 197 Traps 82 | . . . . . . . . . . . . 82 . . . . . . . . . . . . . . . Decoding 111 | . . . . . . . . . . . . . . . . . . . . . . . . . 111 . . T.N.C. 1 | . . . . . . . . . . . . . . . . . . . . . . . . . 1 . . Machine Analysis 22 | . . . . . . . . . . . . . . . . . . . . 22 . . . . . . . Jamming 2775 | . . . . . . 66 . . . 37 82 592 129 . . 296 . . 4 70 . . . 136 352 1011 . ECM 2 | . . . . . . . . . . . . . . . . . . . . . . . . . . 2 . Robot Analysis Total 11 | . . . . 1 4 . . . . . . . . . . . . . . . . . 4 . 1 1 . Derelict Logs Recovered 14 | . . 1 1 . 4 . . . . . . . . 1 3 . 1 . . . . 3 . . . . . Drone Launches 1 | . . . . . . . 1 . . . . . . . . . . . . . . . . . . . . Drone Recoveries . | . . . . . . . . . . . . . . . . . . . . . . . . . . . . Decoded 0b10 Intel 2 | . . . . . . . . . . . . . . . . . . . . . . . . . 2 . . Emergency Access 1 | . . . . . . . . . . . . . . . . . . . . . . . . . 1 . . Garrisons 1 | . . . . . . . . . . . . . . . . . . . . . . . . . 1 . . Exploration | -11 -10 -10 -10 -8 -8 -6 -6 -6 -6 -6 -5 -5 -5 -5 -5 -5 -4 -4 -4 -4 -4 -4 -4 -3 -3 -3 -3 ------------- Run | Yrd Mat Min Sub Rec Scr Fac Ext Cet Arc Hub Fac Gar Fac Upp Upp War Pro Fac Was Fac Upp Upp Zhi Pro Res Qua Frg Turns Passed 39698 | 109 172 601 4832 1382 5768 1543 1130 368 10622 212 394 684 1155 262 678 1457 121 1026 336 363 199 294 176 1021 1523 1758 1512 Spaces Moved 22408 | 80 130 443 2023 463 2653 1037 621 186 982 273 582 272 1501 595 515 1550 271 1348 397 526 358 619 181 1077 1629 1246 850 Core 741 | 5 . . . . . . . . 584 . . . 28 . 2 34 . 88 . . . . . . . . . Treads 309 | 2 . . . . 3 . . 59 192 . . 53 . . . . . . . . . . . . . . . Legs 2203 | . . . . . . 1037 621 127 . . . 3 . . . . . . . . . . . . . . 415 Wheels 5886 | 73 130 443 2023 463 2650 . . . . . . 104 . . . . . . . . . . . . . . . Hover 8596 | . . . . . . . . . 206 273 582 47 . . . . . 1020 397 526 358 619 181 1077 1629 1246 435 Flight 4673 | . . . . . . . . . . . . 65 1473 595 513 1516 271 240 . . . . . . . . . Fastest Speed 23 | 50 95 125 125 215 200 95 95 95 44 44 36 23 25 31 31 24 30 30 41 41 41 41 41 45 35 27 25 Average Speed 141 | 90 113 125 212 215 214 96 98 119 1061 44 45 137 33 32 108 59 30 43 41 41 41 41 42 58 58 47 115 Slowest Speed 1700 | 160 125 125 215 215 490 165 100 240 1700 108 66 400 114 111 500 500 30 114 114 41 41 41 121 120 140 120 257 Overloaded Moves 87 | . . . . . . . . . . . . . . . . . . . . . . . . . 15 5 67 Propulsion Burnouts . | . . . . . . . . . . . . . . . . . . . . . . . . . . . . Robots Hopped 2 | . . . . . . . . . . . . . 1 . . . 1 . . . . . . . . . . Potential Cave-ins 15 | . . . . . . . . . . 4 4 . 2 . . 2 . . . . . . . . . . 3 Cave-ins Triggered . | . . . . . . . . . . . . . . . . . . . . . . . . . . . . Exploration Rate (%) 58 | 4 33 85 89 98 91 35 69 68 89 22 15 34 28 79 76 96 44 21 95 15 69 84 61 80 38 89 38 Regions Visited 27 Branch Regions 18 Pre-discovered Areas 15 | . . . 2 7 . 1 . . . . . . . 1 . . . . . . . 1 3 . . . . Known Exits Taken 19 | . . . . 1 . 1 1 1 1 1 1 . 1 1 1 1 1 . . 1 1 1 1 1 1 1 . Unknown Exits Taken 5 | 1 1 1 1 . 1 . . . . . . . . . . . . . . . . . . . . . . Scrap Searched 43 | . . 3 13 . 10 . . . . . . . . 4 2 . . . . . 2 5 . 4 . . . Spaces Dug 248 | . . . . . . 78 21 . . 6 5 1 11 3 3 3 . 11 40 8 . . . 1 39 11 7 Terrain Destroyed 1011 | . . . 25 . . 178 24 3 10 29 13 15 59 3 3 50 42 16 87 83 41 . . 193 97 11 29 Melee 52 | . . . . . . . . . . . . . 7 2 1 . . 7 . 7 . . . 1 18 9 . Projectile 181 | . . . . . . 43 7 3 10 13 7 15 16 1 2 6 . 9 . 1 . . . 6 29 2 11 AOE 778 | . . . 25 . . 135 17 . . 16 6 . 36 . . 44 42 . 87 75 41 . . 186 50 . 18 Terrain Rammed . | . . . . . . . . . . . . . . . . . . . . . . . . . . . . Walls Destroyed . | . . . . . . . . . . . . . . . . . . . . . . . . . . . . Machines Disabled . | . . . . . . . . . . . . . . . . . . . . . . . . . . . . Actions | -11 -10 -10 -10 -8 -8 -6 -6 -6 -6 -6 -5 -5 -5 -5 -5 -5 -4 -4 -4 -4 -4 -4 -4 -3 -3 -3 -3 --------- Run | Yrd Mat Min Sub Rec Scr Fac Ext Cet Arc Hub Fac Gar Fac Upp Upp War Pro Fac Was Fac Upp Upp Zhi Pro Res Qua Frg Total 29212 | 106 150 468 2478 851 2751 1442 1033 293 1108 342 704 485 2056 661 631 2073 308 1730 566 639 408 660 274 1399 2042 2262 1292 Wait 4327 | 10 2 7 374 380 30 222 198 44 52 29 53 82 284 42 96 370 33 245 141 60 40 27 65 193 203 802 243 Move 22380 | 79 129 442 2022 462 2652 1036 620 185 981 273 582 271 1498 594 514 1549 268 1348 396 525 357 618 180 1076 1628 1245 850 Hop 2 | . . . . . . . . . . . . . 1 . . . 1 . . . . . . . . . . Pick Up 311 | 6 5 7 11 3 26 19 5 6 7 2 12 4 40 1 3 29 . 29 4 6 1 4 5 12 20 24 20 Fast Attach 217 | 7 2 . 3 . 4 9 8 5 10 2 7 14 26 3 2 21 . 20 3 2 . 1 7 7 15 24 15 Attach 157 | . . . 1 . 4 10 2 1 1 3 9 10 18 4 4 18 3 4 3 2 1 . . 2 10 22 25 Detach 72 | . . . 1 . . . 1 . . 1 4 5 9 5 3 10 2 4 1 1 . . . . 3 9 13 Swap 249 | . 2 1 7 1 2 28 23 9 1 4 9 10 18 . 1 4 . 17 2 11 5 3 2 31 27 9 22 Drop 422 | . 7 . 4 4 29 27 17 16 17 2 16 15 44 6 3 45 . 20 8 9 3 6 11 22 23 38 30 Fire 652 | 4 3 11 55 1 . 89 60 19 38 21 11 56 33 1 2 26 1 24 6 6 1 . . 34 56 20 74 Melee 243 | . . . . . 3 . 1 . . . 1 . 45 5 3 1 . 14 . 17 . 1 4 22 57 69 . Ram 6 | . . . . . . . . . 1 5 . . . . . . . . . . . . . . . . . Kick 2 | . . . . . . 2 . . . . . . . . . . . . . . . . . . . . . Crush . | . . . . . . . . . . . . . . . . . . . . . . . . . . . . Escape Stasis 58 | . . . . . . . . . . . . 18 40 . . . . . . . . . . . . . . Rewire 89 | . . . . . . . 82 . . . . . . . . . . 5 2 . . . . . . . . Trap 1 | . . . . . 1 . . . . . . . . . . . . . . . . . . . . . . Miscellaneous 24 | . . . . . . . 16 8 . . . . . . . . . . . . . . . . . . . Route ------- -11/Scrapyard -10/Materials (discovered 2 exits: [*Min x2]) -10/Mines (discovered 4 exits: [*Mat x2] / [*Exi] / *Sub) -10/Subcaves (discovered 3 exits: [*Mat x2] / *Rec) -8/Recycling (discovered 2 exits: *Fac / *Scr) -8/Scraptown (discovered 2 exits: *Fac x2) -6/Factory (discovered 6 exits: *Fac x3 / *Low x2 / *Ext) -6/Extension (discovered 2 exits: *Fac / *Cet) -6/Cetus (discovered 2 exits: *Fac / *Arc) -6/Archives (discovered 3 exits: *Fac / *Hub x2) -6/Hub_04(d) (discovered 2 exits: *Fac x2) -5/Factory (discovered 3 exits: Upp x2 / Gar) -5/Garrison -5/Factory (discovered 2 exits: *Upp x2) -5/Upper Caves -5/Upper Caves (discovered 2 exits: *Fac / *War) -5/Warlord -4/Proximity Caves -4/Factory (discovered 6 exits: Res x4 / Upp x2) -4/Waste -4/Factory (discovered 2 exits: *Upp x2) -4/Upper Caves -4/Upper Caves (discovered 2 exits: *Res / *Zhi) -4/Zhirov -3/Proximity Caves -3/Research (discovered 4 exits: [Res] / Arm / *Qua x2) -3/Quarantine (discovered 3 exits: [*Res] / *Sec / *Frg) -3/Protoforge History --------- Turn | Location | Event 20 | -11/Scrapyard | Discovered new exit (range 15) 110 | -11/Scrapyard | Entered Materials 262 | -10/Materials | Discovered new exit (range 16) 271 | -10/Materials | Discovered new exit (range 7) 282 | -10/Materials | Entered Mines 313 | -10/Mines | Build established: Mutant 336 | -10/Mines | Discovered new exit (range 8) 617 | -10/Mines | Discovered new exit (range 6) 651 | -10/Mines | A weapon hastily lodged in a ceiling crevice suddenly fell to the ground 739 | -10/Mines | Found a damaged Exp. Sensor Array with a note attached 742 | -10/Mines | Found Prototype Device 779 | -10/Mines | Deemed a non-threat by the Exiles lab entrance 780 | -10/Mines | Discovered new exit (range 5) 876 | -10/Mines | Discovered new exit (range 8) 883 | -10/Mines | Entered Subcaves 1013 | -10/Subcaves | Visited triangular shrine 1026 | -10/Subcaves | Found Prototype Device 1026 | -10/Subcaves | Identified V3-11A's Pendant 1031 | -10/Subcaves | Befriended Subdweller 1319 | -10/Subcaves | Ambushed by angry Subdweller bent on revenge 1321 | -10/Subcaves | Befriended Subdweller 1448 | -10/Subcaves | Learned location of Zion (-6) 1448 | -10/Subcaves | Met a Zionite searching for "candidates" 1476 | -10/Subcaves | Befriended Subdweller 1617 | -10/Subcaves | Discovered new exit (range 13) 1777 | -10/Subcaves | Disturbed a concealed Subdweller 1871 | -10/Subcaves | Befriended Subdweller 2201 | -10/Subcaves | Befriended Subdweller 2201 | -10/Subcaves | Befriended Subdweller 2241 | -10/Subcaves | A swath of the cavern ceiling suddenly collapsed 2565 | -10/Subcaves | Shifting Twisted Machinery released Flamer 2837 | -10/Subcaves | Disturbed a concealed Subdweller 2841 | -10/Subcaves | Befriended Subdweller 2851 | -10/Subcaves | Disturbed a concealed Subdweller 2851 | -10/Subcaves | Befriended Subdweller 3885 | -10/Subcaves | Visited 4L-MR0's lab 3910 | -10/Subcaves | Found Gun Armor 4558 | -10/Subcaves | Ambushed by angry Subdweller bent on revenge 4561 | -10/Subcaves | Befriended Subdweller 4643 | -10/Subcaves | Ambushed by Subdweller buried in earth 4646 | -10/Subcaves | Befriended Subdweller 4682 | -10/Subcaves | Shifting Twisted Machinery released Riot Gun 4690 | -10/Subcaves | Discovered new exit (range 8) 4696 | -10/Subcaves | Befriended Subdweller 4861 | -10/Subcaves | Befriended Subdweller 4871 | -10/Subcaves | Befriended Subdweller 4959 | -10/Subcaves | Discovered new exit (range 13) 5044 | -10/Subcaves | Shifting Twisted Machinery released Shrapnel Trap 5715 | -10/Subcaves | Entered Recycling 5715 | -8/Recycling | Accompanied by 9 allies 6437 | -8/Recycling | Discovered new exit (range 11) 6500 | -8/Recycling | Identified exit to Scraptown 6654 | -8/Recycling | Learned location of 2 exits from Factory 6658 | -8/Recycling | Scanned before Scraplab entrance 6767 | -8/Recycling | Learned 4 Factory zone layouts 6809 | -8/Recycling | Learned Storage security intel 6881 | -8/Recycling | Learned 4 Factory zone layouts 6931 | -8/Recycling | Learned Storage emergency access door positions 6993 | -8/Recycling | Learned Factory security intel 7042 | -8/Recycling | Entered Scraplab 7097 | -8/Recycling | Entered Scraptown 7097 | -8/Scraptown | Accompanied by 8 allies 7218 | -8/Scraptown | Visited Red Mages 7312 | -8/Scraptown | Visited Spacefarers 7375 | -8/Scraptown | Visited Bundlers 7543 | -8/Scraptown | Scanned Subdweller tech in exchange for log data 7549 | -8/Scraptown | Learned location of 1 exit from Factory 7553 | -8/Scraptown | Learned 12 Factory zone layouts 7579 | -8/Scraptown | Discovered new exit (range 11) 7846 | -8/Scraptown | Delivered V3-11A's Pendant to T0-NE2 in exchange for information 8256 | -8/Scraptown | Visited Shadow of the Wyrm 8289 | -8/Scraptown | Visited Cyclists 8377 | -8/Scraptown | Visited SPCMW 8433 | -8/Scraptown | Visited UFD Registry 8433 | -8/Scraptown | Registered with UFD as "Mattercore" 8516 | -8/Scraptown | Visited Modified Component R&D 8598 | -8/Scraptown | Visited Curators Association 8684 | -8/Scraptown | Visited Observation Area 8770 | -8/Scraptown | Visited Infowarlord's Domain 8770 | -8/Scraptown | Identified Exp. Sensor Array 8794 | -8/Scraptown | Visited DA-N13 Charitable Foundation 8813 | -8/Scraptown | Found DCF Scrap (29 items) 8869 | -8/Scraptown | Visited Analyses Database 8914 | -8/Scraptown | Visited Science Guys 9013 | -8/Scraptown | Delivered Scrap Shield to a Scientist 9204 | -8/Scraptown | Visited Supply Room 9247 | -8/Scraptown | Visited Scrap Suit Storage 9278 | -8/Scraptown | Visited Abandonware Association 9295 | -8/Scraptown | Learned abandonware demo "OVRCLOCK.EXE" 9303 | -8/Scraptown | Learned abandonware demo "SHUTEYE.EXE" 9303 | -8/Scraptown | Learned abandonware demo "MELTYB.EXE" 9872 | -8/Scraptown | Entered Cyclist Reading Room 10592 | -8/Scraptown | Learned Research trap positions 11048 | -8/Scraptown | Warned about trapping Scraptown 11172 | -8/Scraptown | Found Master Drone Bay 11179 | -8/Scraptown | Lost 11 allies 11336 | -8/Scraptown | Discovered new exit (range 3) 11344 | -8/Scraptown | System corruption cleaned by C-Scrubber 11546 | -8/Scraptown | Found Exp. Signal Interpreter 12147 | -8/Scraptown | Attached Gun Armor, gained temporary slots: Weapon x2 12613 | -8/Scraptown | Found Scrap Suit 12743 | -8/Scraptown | Met Optimus 12743 | -8/Scraptown | Accepted into 0bPrime 12865 | -8/Scraptown | Entered Factory 12865 | -6/Factory | Accompanied by 1 ally 12865 | -6/Factory | Evolved 8 slots: Power x1, Propulsion x3, Utility x4 12866 | -6/Factory | Identified exit to Factory 12866 | -6/Factory | Identified exit to Lower Caves 12866 | -6/Factory | Identified exit to Extension 13231 | -6/Factory | Build established: Scrapper 13599 | -6/Factory | Loaded intel: 8 recycling unit locations 14176 | -6/Factory | Learned location of Protoforge (-3) 14286 | -6/Factory | Scrapoid reinforcements arrived 14304 | -6/Factory | Found Scrap Suit 14408 | -6/Factory | Entered Extension 14408 | -6/Extension | Accompanied by 3 allies 14457 | -6/Extension | Rescued A7 14489 | -6/Extension | Loaded intel: 1 recycling unit location 14501 | -6/Extension | Rescued a captive Derelict 14501 | -6/Extension | Rescued a captive Derelict 14520 | -6/Extension | Rescued a captive Derelict 14524 | -6/Extension | Rescued a captive Derelict 14619 | -6/Extension | Build established: Scavenger-Scrapper 14640 | -6/Extension | Rescued a captive Derelict 14643 | -6/Extension | Rescued a captive Derelict 14728 | -6/Extension | Rescued a captive Derelict 14728 | -6/Extension | Rescued a captive Derelict 14744 | -6/Extension | Lost 5 allies 14754 | -6/Extension | Found Scrap Suit 14758 | -6/Extension | First assault squad dispatched 14784 | -6/Extension | Rescued a captive Derelict 14930 | -6/Extension | Lost 3 allies 14987 | -6/Extension | Rescued a captive Derelict 14988 | -6/Extension | Rescued a captive Derelict 14989 | -6/Extension | Spotted B-75 Beast 14995 | -6/Extension | Spotted B-75 Beast 15002 | -6/Extension | Master Drone dominated B-75 Beast. 15011 | -6/Extension | Destroyed B-75 Beast 15099 | -6/Extension | Rescued a captive Derelict 15100 | -6/Extension | Rescued a captive Derelict 15177 | -6/Extension | Rescued a captive Derelict 15211 | -6/Extension | Rescued a captive Derelict 15355 | -6/Extension | Build established: Commander-Scrapper 15439 | -6/Extension | Discovered exit to Factory (range 10) 15440 | -6/Extension | Discovered new exit (range 6) 15466 | -6/Extension | Identified exit to Cetus 15471 | -6/Extension | Disrupted transfer network 15538 | -6/Extension | Entered Cetus 15538 | -6/Cetus | Accompanied by 18 allies (A7) 15543 | -6/Cetus | Acquired a Cetus Manufacturing Module code from A7 15558 | -6/Cetus | Spotted Cetus Guard 15560 | -6/Cetus | Spotted Cetus Guard 15560 | -6/Cetus | Spotted Cetus Guard 15562 | -6/Cetus | Spotted Cetus Guard 15576 | -6/Cetus | Allies destroyed Cetus Guard 15576 | -6/Cetus | Allies destroyed Cetus Guard 15584 | -6/Cetus | Destroyed Cetus Guard 15586 | -6/Cetus | Allies destroyed Cetus Guard 15613 | -6/Cetus | Lost 7 allies 15624 | -6/Cetus | Cetus Manufacturing Module disabled 15679 | -6/Cetus | Escorted A7 to Cetus Mainframe 15693 | -6/Cetus | Discovered new exit (range 15) 15727 | -6/Cetus | Spotted Cetus Guard 15728 | -6/Cetus | Spotted Cetus Guard 15734 | -6/Cetus | Spotted Cetus Guard 15734 | -6/Cetus | Spotted Cetus Guard 15740 | -6/Cetus | Destroyed Cetus Guard 15742 | -6/Cetus | Allies destroyed Cetus Guard 15749 | -6/Cetus | Destroyed Cetus Guard 15757 | -6/Cetus | Destroyed Cetus Guard 15763 | -6/Cetus | Discovered exit to Factory (range 15) 15768 | -6/Cetus | Met Revision 17 15885 | -6/Cetus | Identified exit to Archives 15906 | -6/Cetus | Entered Archives 15906 | -6/Archives | Accompanied by 10 allies (A7) 15911 | -6/Archives | Received a hacking code to weaken MAIN.C 15964 | -6/Archives | Lost 4 allies 16051 | -6/Archives | Discovered exit to Factory (range 15) 16064 | -6/Archives | Discovered new exit (range 16) 16072 | -6/Archives | Build established: Scavenger-Tank 16116 | -6/Archives | Discovered new exit (range 16) 26517 | -6/Archives | Identified exit to Hub_04(d) 26528 | -6/Archives | Entered Hub_04(d) 26528 | -6/Hub_04(d) | Accompanied by 5 allies 26605 | -6/Hub_04(d) | Discovered exit to Factory (range 10) 26649 | -6/Hub_04(d) | Discovered exit to Factory (range 15) 26676 | -6/Hub_04(d) | Garrison activated, responded to threat 26708 | -6/Hub_04(d) | Build established: Scavenger-Mutant 26730 | -6/Hub_04(d) | Network Hub disabled 26730 | -6/Hub_04(d) | Network Hub disabled 26737 | -6/Hub_04(d) | Lost 5 allies 26740 | -6/Hub_04(d) | Entered Factory 26740 | -5/Factory | Evolved 2 slots: Utility x2 26770 | -5/Factory | Lost 5 parts (3n1u1w) 26881 | -5/Factory | Fabricated Enh. Hardcell Cannon? 26969 | -5/Factory | Identified exit to Upper Caves 27068 | -5/Factory | Lost 4 parts (2n1u1w) 27134 | -5/Factory | Identified exit to Garrison 27134 | -5/Factory | Entered Garrison 27386 | -5/Garrison | Triggered checkpoint 27814 | -5/Garrison | Discovered new exit (range 12) 27818 | -5/Garrison | Identified exit to Factory 27818 | -5/Garrison | Entered Factory 27857 | -5/Factory | Identified exit to DSF 28124 | -5/Factory | Loaded intel: 8 recycling unit locations 28215 | -5/Factory | Repaired Lrg. Storage Unit 28296 | -5/Factory | Fabricated H-66 Slayer (x2) 28563 | -5/Factory | Scrapoids reinforcements arrived? 28648 | -5/Factory | Lost 3 allies 28881 | -5/Factory | Fabricated Enh. Force Lance (x2) 28887 | -5/Factory | Lost 5 parts (1p2n2u) 28888 | -5/Factory | Repaired Broken Lrn. Sensor Array? 28951 | -5/Factory | Fabricated Nanoactuators (x2) 28973 | -5/Factory | Entered Upper Caves 28975 | -5/Upper Caves | UFD Scientist delivered a prototype 28977 | -5/Upper Caves | Found Prototype Protection 28979 | -5/Upper Caves | Identified Enh. Scrap Shield 29118 | -5/Upper Caves | Encountered a Warlord checkpoint 29126 | -5/Upper Caves | Spotted B-75 Beast 29142 | -5/Upper Caves | Attracted the attention of an 0b10 checkpoint 29227 | -5/Upper Caves | Discovered new exit (range 21) 29235 | -5/Upper Caves | Identified exit to Upper Caves 29235 | -5/Upper Caves | Entered another Upper Caves area 29294 | -5/Upper Caves | Discovered new exit (range 12) 29471 | -5/Upper Caves | Learned Factory security intel 29531 | -5/Upper Caves | Prototype Device suddenly appears! 29534 | -5/Upper Caves | Found Prototype Device 29534 | -5/Upper Caves | Identified Amulet of Y3-NDR 29585 | -5/Upper Caves | Joined by bewildered Wizard 29586 | -5/Upper Caves | Joined by bewildered Wizard 29586 | -5/Upper Caves | Joined by bewildered Wizard 29597 | -5/Upper Caves | Build established: Assassin 29613 | -5/Upper Caves | Learned Factory machine intel 29629 | -5/Upper Caves | Joined by bewildered Wizard 29843 | -5/Upper Caves | Discovered new exit (range 7) 29848 | -5/Upper Caves | Identified exit to Warlord 29861 | -5/Upper Caves | Learned Factory stockpile data 29913 | -5/Upper Caves | Entered Warlord 29913 | -5/Warlord | Accompanied by 4 allies 29964 | -5/Warlord | System corruption cleaned by Quarantine Array 30205 | -5/Warlord | Learned Research repair station intel 30205 | -5/Warlord | Learned 4 Testing zone layouts 30206 | -5/Warlord | Learned Testing trap positions 30255 | -5/Warlord | Found Prototype Device 30255 | -5/Warlord | Identified Exp. Phase Shifter 30271 | -5/Warlord | Found Prototype Reactor 30271 | -5/Warlord | Identified Vortex Chain Reactor 30334 | -5/Warlord | Found Prototype Hackware 30411 | -5/Warlord | Warlord's base attacked by MAIN.C 30506 | -5/Warlord | Build established: Mutant 30548 | -5/Warlord | Found Prototype Launcher 30548 | -5/Warlord | Identified Vortex Catalyst Activator 30551 | -5/Warlord | Found Prototype Energy Cannon 30551 | -5/Warlord | Identified Vortex Cannon 30562 | -5/Warlord | Found Vortex Cannon 30761 | -5/Warlord | Warlord forces counterattacked 30790 | -5/Warlord | Destroyed 7 combat bots 30820 | -5/Warlord | Found Prototype Ballistic Cannon 30820 | -5/Warlord | Identified Hvy. Autocannon 30878 | -5/Warlord | Spotted Executioner 30910 | -5/Warlord | Spotted Striker 30926 | -5/Warlord | Lost 20 allies 30992 | -5/Warlord | Opened side exit 31086 | -5/Warlord | Warlord base infiltrated, sounded retreat 31099 | -5/Warlord | Rebuked by Warlord 31213 | -5/Warlord | Build established: Scout 31215 | -5/Warlord | Spotted Executioner 31253 | -5/Warlord | Found Prototype Launcher 31253 | -5/Warlord | Identified Chain Missile Launcher 31263 | -5/Warlord | Core integrity fell below 50% 31290 | -5/Warlord | Spotted Striker 31301 | -5/Warlord | Spotted Executioner 31355 | -5/Warlord | Spotted Executioner 31357 | -5/Warlord | Spotted Executioner 31358 | -5/Warlord | Identified System Mapper 31360 | -5/Warlord | Spotted Executioner 31361 | -5/Warlord | Found Prototype Device 31364 | -5/Warlord | Found Prototype Launcher 31365 | -5/Warlord | Discovered new exit (range 20) 31370 | -5/Warlord | Identified exit to Proximity Caves 31370 | -5/Warlord | Entered Proximity Caves 31385 | -4/Proximity Caves | Lost 16 allies 31388 | -4/Proximity Caves | Learned Research security intel 31398 | -4/Proximity Caves | Lost 4 parts (2n2u) 31398 | -4/Proximity Caves | Identified Exp. Neutron Missile Launcher 31401 | -4/Proximity Caves | Identified Exp. Focal Shield 31432 | -4/Proximity Caves | Spotter reported a threat 31441 | -4/Proximity Caves | Joined by bewildered Wizard 31442 | -4/Proximity Caves | Joined by bewildered Wizard 31449 | -4/Proximity Caves | Discovered new exit (range 11) 31452 | -4/Proximity Caves | Identified exit to Factory 31474 | -4/Proximity Caves | Joined by bewildered Wizard 31474 | -4/Proximity Caves | Joined by bewildered Wizard 31491 | -4/Proximity Caves | Entered Factory 31491 | -4/Factory | Accompanied by 4 allies 31491 | -4/Factory | Evolved 2 slots: Propulsion x1, Utility x1 31494 | -4/Factory | Loaded intel: 291 machine locations 31514 | -4/Factory | Identified exit to DSF 31566 | -4/Factory | Repaired Lrn. Sensor Array 31654 | -4/Factory | Fabricated Cmb. Linear Gravjet (x2) 31673 | -4/Factory | Repaired Broken Imp. Diametric Drive 31707 | -4/Factory | Joined by bewildered Wizard 31707 | -4/Factory | Joined by bewildered Wizard 31709 | -4/Factory | Fabricated G-50 Soldier (x3) 31794 | -4/Factory | Fabricated Hcp. Storage Unit (x1) 31892 | -4/Factory | Joined by bewildered Wizard 31942 | -4/Factory | Joined by bewildered Wizard 31998 | -4/Factory | Identified exit to Research 32032 | -4/Factory | Identified exit to Upper Caves 32063 | -4/Factory | Joined by bewildered Wizard 32063 | -4/Factory | Joined by bewildered Wizard 32063 | -4/Factory | Joined by bewildered Wizard 32102 | -4/Factory | Joined by bewildered Wizard 32166 | -4/Factory | Loaded intel: 8 recycling unit locations 32241 | -4/Factory | First assault squad dispatched 32273 | -4/Factory | Found Launcher Loader 32292 | -4/Factory | Joined by bewildered Wizard 32367 | -4/Factory | Lost 6 allies 32401 | -4/Factory | Joined by bewildered Wizard 32517 | -4/Factory | Sucked down chute 32517 | -4/Factory | Entered Waste 32517 | -4/Waste | The area was eerily silent 32521 | -4/Waste | Found Prototype Processor 32522 | -4/Waste | 1 allies followed down the chute 32616 | -4/Waste | Build established: Hacker-Scout 32677 | -4/Waste | A Compactor rumbled back to life 32677 | -4/Waste | Spotted C-40 Crusher 32688 | -4/Waste | Discovered new exit (range 12) 32697 | -4/Waste | A Compactor rumbled back to life 32697 | -4/Waste | Spotted C-40 Crusher 32716 | -4/Waste | Destroyed C-40 Crusher 32772 | -4/Waste | Rewired C-40 Crusher 32837 | -4/Waste | Identified exit to Factory 32853 | -4/Waste | Entered Factory 32882 | -4/Factory | Loaded intel: 8 recycling unit locations 32914 | -4/Factory | Joined by bewildered Wizard 32914 | -4/Factory | Garrison activated, responded to threat 32915 | -4/Factory | Joined by bewildered Wizard 32958 | -4/Factory | Lost 3 allies 32995 | -4/Factory | Joined by bewildered Wizard 32996 | -4/Factory | Joined by bewildered Wizard 32997 | -4/Factory | Joined by bewildered Wizard 33031 | -4/Factory | Identified Exp. Core Analyzer 33052 | -4/Factory | Joined by bewildered Wizard 33112 | -4/Factory | Lost 3 allies 33119 | -4/Factory | Joined by bewildered Wizard 33119 | -4/Factory | Joined by bewildered Wizard 33216 | -4/Factory | Entered Upper Caves 33236 | -4/Upper Caves | Attracted the attention of an 0b10 checkpoint 33317 | -4/Upper Caves | Encountered a Warlord checkpoint 33335 | -4/Upper Caves | Joined by bewildered Wizard 33337 | -4/Upper Caves | Joined by bewildered Wizard 33347 | -4/Upper Caves | Joined by bewildered Wizard 33348 | -4/Upper Caves | Joined by bewildered Wizard 33384 | -4/Upper Caves | Joined by bewildered Wizard 33396 | -4/Upper Caves | Discovered new exit (range 17) 33411 | -4/Upper Caves | Identified exit to Upper Caves 33415 | -4/Upper Caves | Entered another Upper Caves area 33415 | -4/Upper Caves | Accompanied by 4 allies 33419 | -4/Upper Caves | Discovered exit to Research (range 3) 33427 | -4/Upper Caves | Encountered a Warlord checkpoint 33488 | -4/Upper Caves | Learned Research terminal intel 33504 | -4/Upper Caves | Learned 4 Research zone layouts 33540 | -4/Upper Caves | Discovered new exit (range 17) 33559 | -4/Upper Caves | Identified exit to Zhirov 33709 | -4/Upper Caves | Entered Zhirov 33709 | -4/Zhirov | Accompanied by 4 allies 33709 | -4/Zhirov | Discovered new exit (range 3) 33711 | -4/Zhirov | Identified exit to Proximity Caves 33717 | -4/Zhirov | Met Zhirov 33724 | -4/Zhirov | Learned location of Quarantine (-3) 33724 | -4/Zhirov | Learned location of Command (-1) 33728 | -4/Zhirov | Zhirov requested help retrieving the SGEMP Prototype 33735 | -4/Zhirov | Found Alien Artifact 33735 | -4/Zhirov | Identified Integrated Dissipator 33735 | -4/Zhirov | Installed Integrated Dissipator, increased core heat dissipation (+20) 33849 | -4/Zhirov | Found Alien Artifact 33885 | -4/Zhirov | Entered Proximity Caves 33885 | -3/Proximity Caves | Accompanied by 4 allies 34076 | -3/Proximity Caves | Lost 3 allies 34089 | -3/Proximity Caves | Joined by bewildered Wizard 34089 | -3/Proximity Caves | Joined by bewildered Wizard 34104 | -3/Proximity Caves | Joined by bewildered Wizard 34105 | -3/Proximity Caves | Joined by bewildered Wizard 34158 | -3/Proximity Caves | Joined by bewildered Wizard 34158 | -3/Proximity Caves | Joined by bewildered Wizard 34391 | -3/Proximity Caves | Lost 7 allies 34534 | -3/Proximity Caves | Found Prototype Launcher 34534 | -3/Proximity Caves | Identified Mni. Smartbomb Launcher 34704 | -3/Proximity Caves | Discovered exit to Research (range 16) 34899 | -3/Proximity Caves | System corruption reached 10% 34906 | -3/Proximity Caves | Entered Research 34906 | -3/Research | Evolved 2 slots: Utility x2 34907 | -3/Research | Identified exit to Armory 34909 | -3/Research | Loaded intel: 74 trap records 34911 | -3/Research | Loaded intel: 24 terminal locations 34912 | -3/Research | Loaded intel: 4 repair station locations 34916 | -3/Research | Identified Transdimensional Reconstructor 35065 | -3/Research | Garrison activated, responded to threat 35068 | -3/Research | Joined by bewildered Wizard 35068 | -3/Research | Joined by bewildered Wizard 35102 | -3/Research | Joined by bewildered Wizard 35102 | -3/Research | Joined by bewildered Wizard 35123 | -3/Research | Lost 3 parts (2u1w) 35195 | -3/Research | Found Quantum Capacitor 35214 | -3/Research | Joined by bewildered Wizard 35214 | -3/Research | Joined by bewildered Wizard 35250 | -3/Research | Found Gamma Bomb Array 35299 | -3/Research | Repaired Lrn. Sensor Array 35371 | -3/Research | Repaired Nova Cannon? 35405 | -3/Research | Identified exit to Quarantine 35678 | -3/Research | Repaired Cmb. Linear Gravjet 35729 | -3/Research | Repaired Cmb. Linear Gravjet 36028 | -3/Research | Build established: Wizard-Scout 36293 | -3/Research | Discovered new exit (range 12) 36332 | -3/Research | Loaded intel: 5 recycling unit locations 36429 | -3/Research | Entered Quarantine 36442 | -3/Quarantine | Found Alien Impact Weapon 36442 | -3/Quarantine | Identified Core Stripper 36467 | -3/Quarantine | Spotted Alpha 7 36475 | -3/Quarantine | Destroyed Alpha 7 36487 | -3/Quarantine | Found Prototype Processor 36487 | -3/Quarantine | Identified Exp. Targeting Computer 36522 | -3/Quarantine | Found Prototype Device 36522 | -3/Quarantine | Identified Exp. ECM Suite 36528 | -3/Quarantine | Found Prototype Ballistic Gun 36528 | -3/Quarantine | Identified Multirail 36539 | -3/Quarantine | Found Alien Launcher 36539 | -3/Quarantine | Identified Sigix Terminator 36562 | -3/Quarantine | Build established: Hacker-Ninja 36587 | -3/Quarantine | Found Alien Artifact 36605 | -3/Quarantine | Found Alien Artifact 36660 | -3/Quarantine | Found Alien Slashing Weapon 36660 | -3/Quarantine | Identified Sigix Broadsword 37027 | -3/Quarantine | Identified Phase Armor 37171 | -3/Quarantine | Discovered new exit (range 14) 37220 | -3/Quarantine | Found Alien Reactor 37244 | -3/Quarantine | Identified Terrabomb 37244 | -3/Quarantine | Identified Matter Drive 37275 | -3/Quarantine | Found Alien Artifact 37442 | -3/Quarantine | System corruption reached 10% 37510 | -3/Quarantine | Lost 5 parts (1p1n2u1w) 37553 | -3/Quarantine | Found Alien Artifact 37564 | -3/Quarantine | Identified Dimensional Node Initializer 37564 | -3/Quarantine | Identified Subatomic Replicator 37577 | -3/Quarantine | Found Gamma Bomb Array 37645 | -3/Quarantine | Repaired Cmb. Linear Gravjet? 37709 | -3/Quarantine | Repaired Lrn. Terrain Scanner? 37788 | -3/Quarantine | Repaired Cmb. Linear Gravjet? 37902 | -3/Quarantine | Repaired Cld. Antigrav System 37925 | -3/Quarantine | Build established: Hacker-Scout 38019 | -3/Quarantine | Spotted Fortress 38050 | -3/Quarantine | Discovered new exit (range 6) 38050 | -3/Quarantine | Discovered new exit (range 7) 38052 | -3/Quarantine | Identified exit to Protoforge 38053 | -3/Quarantine | Identified exit to Section 7 38187 | -3/Quarantine | Entered Protoforge 38250 | -3/Protoforge | Spotted Hotshot 38250 | -3/Protoforge | Spotted Hotshot 38379 | -3/Protoforge | Spotted EXE-6 38379 | -3/Protoforge | Spotted EXE-6 38379 | -3/Protoforge | Spotted SKR-2 38380 | -3/Protoforge | Superfortress began startup sequence 38384 | -3/Protoforge | Spotted SKR-2 38385 | -3/Protoforge | Spotted AP7-3 38385 | -3/Protoforge | Spotted Hotshot 38387 | -3/Protoforge | Spotted SKR-2 38388 | -3/Protoforge | Spotted Hotshot 38388 | -3/Protoforge | Spotted AP7-3 38396 | -3/Protoforge | Core integrity fell below 50% 38410 | -3/Protoforge | UFD initiated attack on Protoforge 38410 | -3/Protoforge | Loaded intel: 3 recycling unit locations 38422 | -3/Protoforge | Destroyed SKR-2 38422 | -3/Protoforge | Destroyed SKR-2 38423 | -3/Protoforge | Destroyed SKR-2 38429 | -3/Protoforge | Scraphulk reinforcements arrived 38453 | -3/Protoforge | Lost 10 parts (3p4n1u2w) 38465 | -3/Protoforge | Optimus greeted in Protoforge 38472 | -3/Protoforge | Lost 4 allies 38699 | -3/Protoforge | Fabricated Hvy. Shield Leg (x1) 38708 | -3/Protoforge | Fabricated Coolant Network (x1) 38720 | -3/Protoforge | Fabricated Enh. Hardcell Cannon (x2) 38749 | -3/Protoforge | Fabricated M-36 Artificer (x1) 38787 | -3/Protoforge | Fabricated Hvy. Shield Leg (x1) 38820 | -3/Protoforge | Build established: Hacker-Skirmisher 38877 | -3/Protoforge | Spotted Hotshot 38890 | -3/Protoforge | Allies destroyed Hotshot 38902 | -3/Protoforge | Fabricated Exp. Core Analyzer? 39009 | -3/Protoforge | Spotted Executioner 39010 | -3/Protoforge | Spotted Striker 39023 | -3/Protoforge | Spotted Striker 39043 | -3/Protoforge | Spotted Striker 39049 | -3/Protoforge | Allies destroyed Striker 39072 | -3/Protoforge | Destroyed Executioner 39073 | -3/Protoforge | Core integrity fell below 20% 39147 | -3/Protoforge | Initialized slip node 39155 | -3/Protoforge | Found UFD Drillbomb 39225 | -3/Protoforge | Spotted Striker 39225 | -3/Protoforge | Spotted Striker 39233 | -3/Protoforge | Destroyed Striker 39252 | -3/Protoforge | Spotted Executioner 39261 | -3/Protoforge | Spotted Executioner 39265 | -3/Protoforge | Spotted Striker 39275 | -3/Protoforge | Spotted Executioner 39279 | -3/Protoforge | Spotted Striker 39287 | -3/Protoforge | Spotted Striker 39288 | -3/Protoforge | Spotted Striker 39293 | -3/Protoforge | P-80 Master assimilated allied Lugger 135 39298 | -3/Protoforge | Triborg destroyed during the operation 39298 | -3/Protoforge | Optimus emerged from Triborg 39305 | -3/Protoforge | Destroyed Striker 39311 | -3/Protoforge | Destroyed Striker 39311 | -3/Protoforge | Destroyed Striker 39329 | -3/Protoforge | Lost 4 allies 39341 | -3/Protoforge | Destroyed 11 combat bots 39355 | -3/Protoforge | Spotted Hotshot 39356 | -3/Protoforge | Spotted Hotshot 39359 | -3/Protoforge | Spotted Hotshot 39360 | -3/Protoforge | Spotted Hotshot 39380 | -3/Protoforge | Spotted Hotshot 39380 | -3/Protoforge | Spotted Hotshot 39384 | -3/Protoforge | Spotted Hotshot 39395 | -3/Protoforge | Destroyed Hotshot 39405 | -3/Protoforge | Spotted B-86 Titan 39419 | -3/Protoforge | Lost 3 allies 39422 | -3/Protoforge | Spotted Executioner 39425 | -3/Protoforge | Optimus destroyed during the operation 39431 | -3/Protoforge | Spotted Striker 39459 | -3/Protoforge | Found 0bPrime Scrap Suit 39465 | -3/Protoforge | Found Exp. Core Analyzer 39469 | -3/Protoforge | Found Prototype Device 39469 | -3/Protoforge | Identified Adv. Kinecellerator 39540 | -3/Protoforge | Build established: Scavenger-Mutant 39541 | -3/Protoforge | Lost 8 allies 39693 | -3/Protoforge | Spotted Executioner 39693 | -3/Protoforge | Spotted Executioner 39699 | -3/Protoforge | Destroyed by Executioner with Helical Railgun Last Messages --------------- 39654_ System corrupted: Substantial component data lost. 39661_ N-04 Retriever collects Partition Strike Chip. 39662_ N-04 Retriever collects Mak. Heavy Armor Plating. 39662_ N-04 Retriever collects Scrap Suit. 39666_ 0bP_NET: Lugger 197 inbound, all units not involved in other operations escort to target. 39671_ J OQOUF>RR1AUWPYT6FIHWU1N3Z8DE50XI0XJU 39686_ System corrupted: Substantial component data lost. 39693_ C-30 ARC bursts open, deploying its payload. 39693_ G-67 Veteran unfolds itself. 39693_ H-77 Assassin unfolds itself. 39693_ S-43 Plague unfolds itself. 39693_ P-80 Master unfolds itself. 39693_ I-47 Archangel unfolds itself. 39693_ Penetrated by Slug. 39693_ Slug penetrates Wall. 39694_ Penetrated by Slug. 39694_ Slug penetrates Wall. 39696_ System corrupted: Gamma Bomb Array failed to launch. 39697_ Penetrated by Slug. Map ----- +----------------------------------------------------+ | ???????????????????????????????????????##????????? | | ????????????########?########?########?##????????? | | ????????????########?########?########?##????????? | | ????##########????#####????#####????#####????????? | | ????##########????#####????#####????#####????????? | | ????##???????????????????????????????????????????? | | ????##???????????????????????????????????????????? | | ????##???????????????????????????????????????????? | | ????##???????????????????????????????????????????? | | ????##???????????????????????????????????????????? | | ????##???????????????????????????????????????????? | | ????##???#####????#####????#####????#####????????? | | ????##???#####????#####????#####????#####????????? | | ????##???##?########?########?########?##????????? | | ????##???##?########?########?########?##????????? | | ????##???##????????????????????????????########### | | ????##???##????????????????????????????########### | | ????##???##??????????????????????????????????????? | | ######???##??????????????????????????????????????? | | ######???##??????????????????????????????????????? | | ?????#???##??????????????????????????????????????? | | ?????#???##############################??????????? | | ?????#???#################;#######;####??????????? | | ?????#?? s E ##??????????? | | ???????? ig h ##??????????? | | ?????#?? % E @ ; #?????????? | | ?????##?############;;;;;;+####;;# ##??????????? | | ?????#?????????????## # ##???######## | | ???????????????????## # ############# | | ######?????????????## """"""" # ######" # | | ######?????????????## """"""" # % # | | ????##?????????????## """"""" # T # | | ######?????????????## #! # | | ########?###############+#########! ###### # | | ?????????????????????????????? !*%!! "#####" ## | | ???????????????????????????? " ]!= ""# ### " | | ???????????????????????????? %"""" ""##"## " | | ??????????????????????????? """"" ""#" !" | | ########?##????#######?????? """" T## % | | ??????????#????#?????#?????????""" "?## % | | ??????????#????#?????#??????????"" "?####" !!% | | ??????????#????#????????????????"" "?##### "# | | ??????????#????#?????#??????????? ####?## # | | ??????????#????#?????#??????????? ####?## # | | ??????????#????#?????#??????????? ####### #! | | ###########????#?????#############? ######## # | | ???????????????#?????######??????#???#??????# /[ | | ???????????????#?????######??????#???#??????# #% | | ???????????????#?????######?????????????????##### | | ???????????????#?????????????????#???#??????#####! | +----------------------------------------------------+ Best States ------------- Heat Dissipation 182 Energy Generation 55 Energy Capacity 900 Matter Stores 300 Matter Capacity 300 Sight Range 22 Robot Scan Range 20 Terrain Scan Range 24 Terrain Scan Density 210 Jamming Range 16 Additional Mass Support 9 Corruption Containment 8 Corruption Block 20 Armor Coverage 800 Resistance: KI 30 Propulsion Shielding 90 Melee Speed Boost 30 Phase Shifting 20 Evasion (%) 69 Melee Accuracy 12 Core Analysis 12 Recoil Reduction 4 Kinecelleration 50 Salvage Targeting 4 Offensive Hacking 62 Defensive Hacking 14 Authchip Count 3 Trap Extractor Capacity 6 Item Schematics ----------------- Hcp. Storage Unit | -10/Materials | Hacked Hacking Suite | -8/Recycling | Hacked Quantum Reactor | -5/Factory | Downloaded Centrium Medium Armor Plating | -5/Factory | Scanalyzed Nuclear Pulse Array | -5/Factory | Scanalyzed Enh. Hardcell Cannon | -5/Factory | Scanalyzed CPS Tube | -5/Factory | Scanalyzed Matter Compressor | -5/Factory | Scanalyzed Huge Storage Unit | -5/Factory | Scanalyzed Adv. Transmission Jammer | -5/Factory | Scanalyzed Smartbomb Launcher | -5/Factory | Scanalyzed Kinetic Spear | -5/Factory | Scanalyzed Enh. Force Lance | -5/Factory | Hacked Nanoactuators | -5/Factory | Hacked Imp. Diametric Drive | -4/Factory | Scanalyzed Enh. Nova Cannon | -4/Factory | Hacked Graphene Brace | -4/Factory | Hacked Lgt. Quantum Reactor | -4/Factory | Hacked Med. Armored Exoskeleton | -4/Factory | Hacked Biometal Heavy Treads | -4/Factory | Hacked Cmb. Linear Gravjet | -4/Factory | Scanalyzed Core Analyzer | -4/Factory | Scanalyzed Exp. Focal Shield | -4/Factory | Scanalyzed HERF Cannon | -4/Factory | Scanalyzed Imp. Heavy Siege Treads | -4/Factory | Scanalyzed Launcher Loader | -4/Factory | Scanalyzed Hvy. Shield Leg | -4/Factory | Scanalyzed Exp. Core Analyzer | -4/Factory | Scanalyzed Centrium Leg | -4/Factory | Hacked Exp. Sensor Array | -4/Factory | Hacked Assault Drone Bay | -4/Zhirov | Free Exp. Heat Sink | -4/Zhirov | Free Exp. Optical Array | -4/Zhirov | Free Imp. Arc Thrower | -4/Zhirov | Free Mni. Smartbomb Launcher | -3/Research | Scanalyzed Adv. Energy Well | -3/Research | Scanalyzed Imp. Launcher Guidance Computer | -3/Research | Scanalyzed Hvy. Shock Bomb Launcher | -3/Research | Scanalyzed Adv. Heavy Siege Treads | -3/Research | Hacked Lrn. Sensor Array | -3/Research | Scanalyzed Cld. Gravmag System | -3/Research | Scanalyzed Exp. Q-thruster | -3/Protoforge | Hacked Robot Schematics ------------------ None Fabricated ------------ Enh. Hardcell Cannon | x2 | -5/Factory | Preloaded H-66 Slayer | x2 | -5/Factory | Preloaded Enh. Force Lance | x2 | -5/Factory | Authchip Nanoactuators | x2 | -5/Factory Cmb. Linear Gravjet | x2 | -4/Factory | Preloaded G-50 Soldier | x3 | -4/Factory | Preloaded Hcp. Storage Unit | x1 | -4/Factory Hvy. Shield Leg | x1 | -3/Protoforge | Authchip Coolant Network | x1 | -3/Protoforge | Preloaded Enh. Hardcell Cannon | x2 | -3/Protoforge | Preloaded M-36 Artificer | x1 | -3/Protoforge | Preloaded Hvy. Shield Leg | x1 | -3/Protoforge | Authchip Exp. Core Analyzer | x1 | -3/Protoforge | Authchip Repaired ---------- Lrg. Storage Unit | 58% | -5/Factory Lrn. Sensor Array | 55% | -5/Factory | Broken Lrn. Sensor Array | 14% | -4/Factory Imp. Diametric Drive | 46% | -4/Factory | Broken Lrn. Sensor Array | 7% | -3/Research Nova Cannon | 12% | -3/Research Cmb. Linear Gravjet | 44% | -3/Research Cmb. Linear Gravjet | 55% | -3/Research Cmb. Linear Gravjet | 3% | -3/Quarantine Lrn. Terrain Scanner | 7% | -3/Quarantine Cmb. Linear Gravjet | 55% | -3/Quarantine Cld. Antigrav System | 44% | -3/Quarantine Alien Tech Used ----------------- Integrated Dissipator Core Stripper Sigix Terminator Sigix Broadsword Phase Armor Matter Drive Dimensional Node Initializer Achievements -------------- None Challenges ------------ None Game ------ Seed OpticalPiercingCore Manual? 0 Play Time 09:23:28 Cumulative 770.7 hours Start 2025.08.04 @ 22:18:23 End 2025.08.08 @ 19:28:21 Sessions 9 Manual Loads 0 Difficulty Rogue Special Mode None Game No. 293 Rogue 289 Adventurer 4 Explorer 0 Win Type - Total 12 Types 7/1/1/1/0/1/0/0/0/1 Lore% 94 Gallery% 89 Achievement% 87 Wizard Run 0 Options --------- Layout 0 ASCII 0 Keyboard 0 Movement Numpad Keybinds 0 Fullscreen 2 Font 18/CogNarrow Map View 76x50 Zoom Use 0% Tactical HUD 1 Map Filters NONE Filters NONE Steam 1 RUN: 2eda06b0-a0e3-4a40-978d-0c08cf97beb6